{"text_format":"1","workbook":"xlsx","n_sheets":1,"sheets":["output"],"not_rendered":{"charts":0,"images":0,"macros":1,"external_links":0,"defined_names":0,"comments":0,"pivot_tables":0},"unopened":[],"bounds":{"document_bytes":16777216,"sheet_cells":100000,"rows_first":2000,"rows_last":500,"rows_between":2000,"halvings":0,"cell_chars":16384,"cell_head_chars":4096},"cells_cut":0,"cells_raw":0,"read":"whole","date_system":"1900"}

{"sheet":"output","index":0,"n_rows":273,"n_cols":3,"rows_kept":273,"cut":false,"hidden":false,"merged":[]}
["Abdominal Binder",300,{"$f":"\"INSERT INTO `item` (`item_type_id`, `item_name`, `item_price`) VALUES ('2', '\"&A1&\"', '\"&B1&\"');\"","v":"INSERT INTO `item` (`item_type_id`, `item_name`, `item_price`) VALUES ('2', 'Abdominal Binder', '300');"}]
["Adduction Pillow",1500,{"$f":"\"INSERT INTO `item` (`item_type_id`, `item_name`, `item_price`) VALUES ('2', '\"&A2&\"', '\"&B2&\"');\"","v":"INSERT INTO `item` (`item_type_id`, `item_name`, `item_price`) VALUES ('2', 'Adduction Pillow', '1500');"}]
["Adjustable Shoulder Support (NS-102) -Large",850,{"$f":"\"INSERT INTO `item` (`item_type_id`, `item_name`, `item_price`) VALUES ('2', '\"&A3&\"', '\"&B3&\"');\"","v":"INSERT INTO `item` (`item_type_id`, `item_name`, `item_price`) VALUES ('2', 'Adjustable Shoulder Support (NS-102) -Large', '850');"}]
["Alina Stockings Knee High 20-30mmHg -Medium",1600,{"$f":"\"INSERT INTO `item` (`item_type_id`, `item_name`, `item_price`) VALUES ('2', '\"&A4&\"', '\"&B4&\"');\"","v":"INSERT INTO `item` (`item_type_id`, `item_name`, `item_price`) VALUES ('2', 'Alina Stockings Knee High 20-30mmHg -Medium', '1600');"}]
["Alina Stockings Thigh High 20-30mmHg -Large",1600,{"$f":"\"INSERT INTO `item` (`item_type_id`, `item_name`, `item_price`) VALUES ('2', '\"&A5&\"', '\"&B5&\"');\"","v":"INSERT INTO `item` (`item_type_id`, `item_name`, `item_price`) VALUES ('2', 'Alina Stockings Thigh High 20-30mmHg -Large', '1600');"}]
["Allen and Irving Aneroid BP with Stethoscope",1400,{"$f":"\"INSERT INTO `item` (`item_type_id`, `item_name`, `item_price`) VALUES ('2', '\"&A6&\"', '\"&B6&\"');\"","v":"INSERT INTO `item` (`item_type_id`, `item_name`, `item_price`) VALUES ('2', 'Allen and Irving Aneroid BP with Stethoscope', '1400');"}]
["Aluminum Crutches -Large",1500,{"$f":"\"INSERT INTO `item` (`item_type_id`, `item_name`, `item_price`) VALUES ('2', '\"&A7&\"', '\"&B7&\"');\"","v":"INSERT INTO `item` (`item_type_id`, `item_name`, `item_price`) VALUES ('2', 'Aluminum Crutches -Large', '1500');"}]
["Aluminum Crutches -Medium",1500,{"$f":"\"INSERT INTO `item` (`item_type_id`, `item_name`, `item_price`) VALUES ('2', '\"&A8&\"', '\"&B8&\"');\"","v":"INSERT INTO `item` (`item_type_id`, `item_name`, `item_price`) VALUES ('2', 'Aluminum Crutches -Medium', '1500');"}]
["Aluminum Splint",150,{"$f":"\"INSERT INTO `item` (`item_type_id`, `item_name`, `item_price`) VALUES ('2', '\"&A9&\"', '\"&B9&\"');\"","v":"INSERT INTO `item` (`item_type_id`, `item_name`, `item_price`) VALUES ('2', 'Aluminum Splint', '150');"}]
["Ankle Brace WH-901 -Large",850,{"$f":"\"INSERT INTO `item` (`item_type_id`, `item_name`, `item_price`) VALUES ('2', '\"&A10&\"', '\"&B10&\"');\"","v":"INSERT INTO `item` (`item_type_id`, `item_name`, `item_price`) VALUES ('2', 'Ankle Brace WH-901 -Large', '850');"}]
["Ankle Foot Orthosis (OH-908) Left -Medium",300,{"$f":"\"INSERT INTO `item` (`item_type_id`, `item_name`, `item_price`) VALUES ('2', '\"&A11&\"', '\"&B11&\"');\"","v":"INSERT INTO `item` (`item_type_id`, `item_name`, `item_price`) VALUES ('2', 'Ankle Foot Orthosis (OH-908) Left -Medium', '300');"}]
["Ankle Lycra (NS-903)",700,{"$f":"\"INSERT INTO `item` (`item_type_id`, `item_name`, `item_price`) VALUES ('2', '\"&A12&\"', '\"&B12&\"');\"","v":"INSERT INTO `item` (`item_type_id`, `item_name`, `item_price`) VALUES ('2', 'Ankle Lycra (NS-903)', '700');"}]
["Ankle Stirrup Air One Size",1700,{"$f":"\"INSERT INTO `item` (`item_type_id`, `item_name`, `item_price`) VALUES ('2', '\"&A13&\"', '\"&B13&\"');\"","v":"INSERT INTO `item` (`item_type_id`, `item_name`, `item_price`) VALUES ('2', 'Ankle Stirrup Air One Size', '1700');"}]
["Arm Sling Blue -Large",250,{"$f":"\"INSERT INTO `item` (`item_type_id`, `item_name`, `item_price`) VALUES ('2', '\"&A14&\"', '\"&B14&\"');\"","v":"INSERT INTO `item` (`item_type_id`, `item_name`, `item_price`) VALUES ('2', 'Arm Sling Blue -Large', '250');"}]
["Arm Sling Blue -Medium",250,{"$f":"\"INSERT INTO `item` (`item_type_id`, `item_name`, `item_price`) VALUES ('2', '\"&A15&\"', '\"&B15&\"');\"","v":"INSERT INTO `item` (`item_type_id`, `item_name`, `item_price`) VALUES ('2', 'Arm Sling Blue -Medium', '250');"}]
["Arm Sling Blue -Small",250,{"$f":"\"INSERT INTO `item` (`item_type_id`, `item_name`, `item_price`) VALUES ('2', '\"&A16&\"', '\"&B16&\"');\"","v":"INSERT INTO `item` (`item_type_id`, `item_name`, `item_price`) VALUES ('2', 'Arm Sling Blue -Small', '250');"}]
["Arm Sling Checkered -Small",200,{"$f":"\"INSERT INTO `item` (`item_type_id`, `item_name`, `item_price`) VALUES ('2', '\"&A17&\"', '\"&B17&\"');\"","v":"INSERT INTO `item` (`item_type_id`, `item_name`, `item_price`) VALUES ('2', 'Arm Sling Checkered -Small', '200');"}]
["Arm Sling Kiddie -Extra Large",200,{"$f":"\"INSERT INTO `item` (`item_type_id`, `item_name`, `item_price`) VALUES ('2', '\"&A18&\"', '\"&B18&\"');\"","v":"INSERT INTO `item` (`item_type_id`, `item_name`, `item_price`) VALUES ('2', 'Arm Sling Kiddie -Extra Large', '200');"}]
["Arm Sling Kiddie -Large",200,{"$f":"\"INSERT INTO `item` (`item_type_id`, `item_name`, `item_price`) VALUES ('2', '\"&A19&\"', '\"&B19&\"');\"","v":"INSERT INTO `item` (`item_type_id`, `item_name`, `item_price`) VALUES ('2', 'Arm Sling Kiddie -Large', '200');"}]
["Arm Sling Kiddie -Medium",200,{"$f":"\"INSERT INTO `item` (`item_type_id`, `item_name`, `item_price`) VALUES ('2', '\"&A20&\"', '\"&B20&\"');\"","v":"INSERT INTO `item` (`item_type_id`, `item_name`, `item_price`) VALUES ('2', 'Arm Sling Kiddie -Medium', '200');"}]
["Arm Sling Kiddie -Small",200,{"$f":"\"INSERT INTO `item` (`item_type_id`, `item_name`, `item_price`) VALUES ('2', '\"&A21&\"', '\"&B21&\"');\"","v":"INSERT INTO `item` (`item_type_id`, `item_name`, `item_price`) VALUES ('2', 'Arm Sling Kiddie -Small', '200');"}]
["Block Box (set)",1900,{"$f":"\"INSERT INTO `item` (`item_type_id`, `item_name`, `item_price`) VALUES ('2', '\"&A22&\"', '\"&B22&\"');\"","v":"INSERT INTO `item` (`item_type_id`, `item_name`, `item_price`) VALUES ('2', 'Block Box (set)', '1900');"}]
["Boddy Splint",150,{"$f":"\"INSERT INTO `item` (`item_type_id`, `item_name`, `item_price`) VALUES ('2', '\"&A23&\"', '\"&B23&\"');\"","v":"INSERT INTO `item` (`item_type_id`, `item_name`, `item_price`) VALUES ('2', 'Boddy Splint', '150');"}]
["Body Splint",250,{"$f":"\"INSERT INTO `item` (`item_type_id`, `item_name`, `item_price`) VALUES ('2', '\"&A24&\"', '\"&B24&\"');\"","v":"INSERT INTO `item` (`item_type_id`, `item_name`, `item_price`) VALUES ('2', 'Body Splint', '250');"}]
["Cane with Chair",1000,{"$f":"\"INSERT INTO `item` (`item_type_id`, `item_name`, `item_price`) VALUES ('2', '\"&A25&\"', '\"&B25&\"');\"","v":"INSERT INTO `item` (`item_type_id`, `item_name`, `item_price`) VALUES ('2', 'Cane with Chair', '1000');"}]
["Clavicle Brace OH-102 -Extra Large",1600,{"$f":"\"INSERT INTO `item` (`item_type_id`, `item_name`, `item_price`) VALUES ('2', '\"&A26&\"', '\"&B26&\"');\"","v":"INSERT INTO `item` (`item_type_id`, `item_name`, `item_price`) VALUES ('2', 'Clavicle Brace OH-102 -Extra Large', '1600');"}]
["Clavicle Brace OH-102 -Large",1500,{"$f":"\"INSERT INTO `item` (`item_type_id`, `item_name`, `item_price`) VALUES ('2', '\"&A27&\"', '\"&B27&\"');\"","v":"INSERT INTO `item` (`item_type_id`, `item_name`, `item_price`) VALUES ('2', 'Clavicle Brace OH-102 -Large', '1500');"}]
["Clavicle Brace OH-102 -Medium",1500,{"$f":"\"INSERT INTO `item` (`item_type_id`, `item_name`, `item_price`) VALUES ('2', '\"&A28&\"', '\"&B28&\"');\"","v":"INSERT INTO `item` (`item_type_id`, `item_name`, `item_price`) VALUES ('2', 'Clavicle Brace OH-102 -Medium', '1500');"}]
["Clavicle -Large",500,{"$f":"\"INSERT INTO `item` (`item_type_id`, `item_name`, `item_price`) VALUES ('2', '\"&A29&\"', '\"&B29&\"');\"","v":"INSERT INTO `item` (`item_type_id`, `item_name`, `item_price`) VALUES ('2', 'Clavicle -Large', '500');"}]
["Clavicle -Medium",500,{"$f":"\"INSERT INTO `item` (`item_type_id`, `item_name`, `item_price`) VALUES ('2', '\"&A30&\"', '\"&B30&\"');\"","v":"INSERT INTO `item` (`item_type_id`, `item_name`, `item_price`) VALUES ('2', 'Clavicle -Medium', '500');"}]
["Clavicle Splint -Large",500,{"$f":"\"INSERT INTO `item` (`item_type_id`, `item_name`, `item_price`) VALUES ('2', '\"&A31&\"', '\"&B31&\"');\"","v":"INSERT INTO `item` (`item_type_id`, `item_name`, `item_price`) VALUES ('2', 'Clavicle Splint -Large', '500');"}]
["Clavicle Splint -Medium",500,{"$f":"\"INSERT INTO `item` (`item_type_id`, `item_name`, `item_price`) VALUES ('2', '\"&A32&\"', '\"&B32&\"');\"","v":"INSERT INTO `item` (`item_type_id`, `item_name`, `item_price`) VALUES ('2', 'Clavicle Splint -Medium', '500');"}]
["Clavicle Splint -Small Infant",500,{"$f":"\"INSERT INTO `item` (`item_type_id`, `item_name`, `item_price`) VALUES ('2', '\"&A33&\"', '\"&B33&\"');\"","v":"INSERT INTO `item` (`item_type_id`, `item_name`, `item_price`) VALUES ('2', 'Clavicle Splint -Small Infant', '500');"}]
["Clavicular Padded Splint -Medium",500,{"$f":"\"INSERT INTO `item` (`item_type_id`, `item_name`, `item_price`) VALUES ('2', '\"&A34&\"', '\"&B34&\"');\"","v":"INSERT INTO `item` (`item_type_id`, `item_name`, `item_price`) VALUES ('2', 'Clavicular Padded Splint -Medium', '500');"}]
["Clavicular Padded Splint -Small / Child",500,{"$f":"\"INSERT INTO `item` (`item_type_id`, `item_name`, `item_price`) VALUES ('2', '\"&A35&\"', '\"&B35&\"');\"","v":"INSERT INTO `item` (`item_type_id`, `item_name`, `item_price`) VALUES ('2', 'Clavicular Padded Splint -Small / Child', '500');"}]
["Commode Chair",2700,{"$f":"\"INSERT INTO `item` (`item_type_id`, `item_name`, `item_price`) VALUES ('2', '\"&A36&\"', '\"&B36&\"');\"","v":"INSERT INTO `item` (`item_type_id`, `item_name`, `item_price`) VALUES ('2', 'Commode Chair', '2700');"}]
["Commode Chair US",3000,{"$f":"\"INSERT INTO `item` (`item_type_id`, `item_name`, `item_price`) VALUES ('2', '\"&A37&\"', '\"&B37&\"');\"","v":"INSERT INTO `item` (`item_type_id`, `item_name`, `item_price`) VALUES ('2', 'Commode Chair US', '3000');"}]
["DM Shoe (Not Pair) Size 10",350,{"$f":"\"INSERT INTO `item` (`item_type_id`, `item_name`, `item_price`) VALUES ('2', '\"&A38&\"', '\"&B38&\"');\"","v":"INSERT INTO `item` (`item_type_id`, `item_name`, `item_price`) VALUES ('2', 'DM Shoe (Not Pair) Size 10', '350');"}]
["DM Shoe (Not Pair) Size 11",350,{"$f":"\"INSERT INTO `item` (`item_type_id`, `item_name`, `item_price`) VALUES ('2', '\"&A39&\"', '\"&B39&\"');\"","v":"INSERT INTO `item` (`item_type_id`, `item_name`, `item_price`) VALUES ('2', 'DM Shoe (Not Pair) Size 11', '350');"}]
["DM Shoe (Not Pair) Size 5",350,{"$f":"\"INSERT INTO `item` (`item_type_id`, `item_name`, `item_price`) VALUES ('2', '\"&A40&\"', '\"&B40&\"');\"","v":"INSERT INTO `item` (`item_type_id`, `item_name`, `item_price`) VALUES ('2', 'DM Shoe (Not Pair) Size 5', '350');"}]
["DM Shoe (Not Pair) Size 6",350,{"$f":"\"INSERT INTO `item` (`item_type_id`, `item_name`, `item_price`) VALUES ('2', '\"&A41&\"', '\"&B41&\"');\"","v":"INSERT INTO `item` (`item_type_id`, `item_name`, `item_price`) VALUES ('2', 'DM Shoe (Not Pair) Size 6', '350');"}]
["DM Shoe (Not Pair) Size 7",350,{"$f":"\"INSERT INTO `item` (`item_type_id`, `item_name`, `item_price`) VALUES ('2', '\"&A42&\"', '\"&B42&\"');\"","v":"INSERT INTO `item` (`item_type_id`, `item_name`, `item_price`) VALUES ('2', 'DM Shoe (Not Pair) Size 7', '350');"}]
["DM Shoe (Not Pair) Size 8",350,{"$f":"\"INSERT INTO `item` (`item_type_id`, `item_name`, `item_price`) VALUES ('2', '\"&A43&\"', '\"&B43&\"');\"","v":"INSERT INTO `item` (`item_type_id`, `item_name`, `item_price`) VALUES ('2', 'DM Shoe (Not Pair) Size 8', '350');"}]
["DM Shoe (Not Pair) Size 9",350,{"$f":"\"INSERT INTO `item` (`item_type_id`, `item_name`, `item_price`) VALUES ('2', '\"&A44&\"', '\"&B44&\"');\"","v":"INSERT INTO `item` (`item_type_id`, `item_name`, `item_price`) VALUES ('2', 'DM Shoe (Not Pair) Size 9', '350');"}]
["Dr. Care Finger Splint",250,{"$f":"\"INSERT INTO `item` (`item_type_id`, `item_name`, `item_price`) VALUES ('2', '\"&A45&\"', '\"&B45&\"');\"","v":"INSERT INTO `item` (`item_type_id`, `item_name`, `item_price`) VALUES ('2', 'Dr. Care Finger Splint', '250');"}]
["Dr. S Ortho Hinged Knee Brace -Medium",1500,{"$f":"\"INSERT INTO `item` (`item_type_id`, `item_name`, `item_price`) VALUES ('2', '\"&A46&\"', '\"&B46&\"');\"","v":"INSERT INTO `item` (`item_type_id`, `item_name`, `item_price`) VALUES ('2', 'Dr. S Ortho Hinged Knee Brace -Medium', '1500');"}]
["Elastic Ankle -Extra Large",400,{"$f":"\"INSERT INTO `item` (`item_type_id`, `item_name`, `item_price`) VALUES ('2', '\"&A47&\"', '\"&B47&\"');\"","v":"INSERT INTO `item` (`item_type_id`, `item_name`, `item_price`) VALUES ('2', 'Elastic Ankle -Extra Large', '400');"}]
["Elastic Ankle -Large",400,{"$f":"\"INSERT INTO `item` (`item_type_id`, `item_name`, `item_price`) VALUES ('2', '\"&A48&\"', '\"&B48&\"');\"","v":"INSERT INTO `item` (`item_type_id`, `item_name`, `item_price`) VALUES ('2', 'Elastic Ankle -Large', '400');"}]
["Elastic Ankle -Medium",400,{"$f":"\"INSERT INTO `item` (`item_type_id`, `item_name`, `item_price`) VALUES ('2', '\"&A49&\"', '\"&B49&\"');\"","v":"INSERT INTO `item` (`item_type_id`, `item_name`, `item_price`) VALUES ('2', 'Elastic Ankle -Medium', '400');"}]
["Elastic Ankle Support (ES-901) -Extra Large",400,{"$f":"\"INSERT INTO `item` (`item_type_id`, `item_name`, `item_price`) VALUES ('2', '\"&A50&\"', '\"&B50&\"');\"","v":"INSERT INTO `item` (`item_type_id`, `item_name`, `item_price`) VALUES ('2', 'Elastic Ankle Support (ES-901) -Extra Large', '400');"}]
["Elastic Ankle Support (ES-901) -Large",400,{"$f":"\"INSERT INTO `item` (`item_type_id`, `item_name`, `item_price`) VALUES ('2', '\"&A51&\"', '\"&B51&\"');\"","v":"INSERT INTO `item` (`item_type_id`, `item_name`, `item_price`) VALUES ('2', 'Elastic Ankle Support (ES-901) -Large', '400');"}]
["Elastic Ankle Support (ES-901) -Medium",400,{"$f":"\"INSERT INTO `item` (`item_type_id`, `item_name`, `item_price`) VALUES ('2', '\"&A52&\"', '\"&B52&\"');\"","v":"INSERT INTO `item` (`item_type_id`, `item_name`, `item_price`) VALUES ('2', 'Elastic Ankle Support (ES-901) -Medium', '400');"}]
["Elastic Ankle Support (ES-901) -Small",400,{"$f":"\"INSERT INTO `item` (`item_type_id`, `item_name`, `item_price`) VALUES ('2', '\"&A53&\"', '\"&B53&\"');\"","v":"INSERT INTO `item` (`item_type_id`, `item_name`, `item_price`) VALUES ('2', 'Elastic Ankle Support (ES-901) -Small', '400');"}]
["Elastic Band 2\"",40,{"$f":"\"INSERT INTO `item` (`item_type_id`, `item_name`, `item_price`) VALUES ('2', '\"&A54&\"', '\"&B54&\"');\"","v":"INSERT INTO `item` (`item_type_id`, `item_name`, `item_price`) VALUES ('2', 'Elastic Band 2\"', '40');"}]
["Elastic Band 3\"",50,{"$f":"\"INSERT INTO `item` (`item_type_id`, `item_name`, `item_price`) VALUES ('2', '\"&A55&\"', '\"&B55&\"');\"","v":"INSERT INTO `item` (`item_type_id`, `item_name`, `item_price`) VALUES ('2', 'Elastic Band 3\"', '50');"}]
["Elastic Band 4\"",60,{"$f":"\"INSERT INTO `item` (`item_type_id`, `item_name`, `item_price`) VALUES ('2', '\"&A56&\"', '\"&B56&\"');\"","v":"INSERT INTO `item` (`item_type_id`, `item_name`, `item_price`) VALUES ('2', 'Elastic Band 4\"', '60');"}]
["Elastic Band 6\"",100,{"$f":"\"INSERT INTO `item` (`item_type_id`, `item_name`, `item_price`) VALUES ('2', '\"&A57&\"', '\"&B57&\"');\"","v":"INSERT INTO `item` (`item_type_id`, `item_name`, `item_price`) VALUES ('2', 'Elastic Band 6\"', '100');"}]
["Elastic Calf ES-801 -Large",400,{"$f":"\"INSERT INTO `item` (`item_type_id`, `item_name`, `item_price`) VALUES ('2', '\"&A58&\"', '\"&B58&\"');\"","v":"INSERT INTO `item` (`item_type_id`, `item_name`, `item_price`) VALUES ('2', 'Elastic Calf ES-801 -Large', '400');"}]
["Elastic Calf ES-801 -Medium",400,{"$f":"\"INSERT INTO `item` (`item_type_id`, `item_name`, `item_price`) VALUES ('2', '\"&A59&\"', '\"&B59&\"');\"","v":"INSERT INTO `item` (`item_type_id`, `item_name`, `item_price`) VALUES ('2', 'Elastic Calf ES-801 -Medium', '400');"}]
["Elastic Calf -Large",375,{"$f":"\"INSERT INTO `item` (`item_type_id`, `item_name`, `item_price`) VALUES ('2', '\"&A60&\"', '\"&B60&\"');\"","v":"INSERT INTO `item` (`item_type_id`, `item_name`, `item_price`) VALUES ('2', 'Elastic Calf -Large', '375');"}]
["Elastic Knee (ES-701) -Extra Large",400,{"$f":"\"INSERT INTO `item` (`item_type_id`, `item_name`, `item_price`) VALUES ('2', '\"&A61&\"', '\"&B61&\"');\"","v":"INSERT INTO `item` (`item_type_id`, `item_name`, `item_price`) VALUES ('2', 'Elastic Knee (ES-701) -Extra Large', '400');"}]
["Elastic Knee (ES-701) -Large",400,{"$f":"\"INSERT INTO `item` (`item_type_id`, `item_name`, `item_price`) VALUES ('2', '\"&A62&\"', '\"&B62&\"');\"","v":"INSERT INTO `item` (`item_type_id`, `item_name`, `item_price`) VALUES ('2', 'Elastic Knee (ES-701) -Large', '400');"}]
["Elastic Knee (ES-701) -Medium",400,{"$f":"\"INSERT INTO `item` (`item_type_id`, `item_name`, `item_price`) VALUES ('2', '\"&A63&\"', '\"&B63&\"');\"","v":"INSERT INTO `item` (`item_type_id`, `item_name`, `item_price`) VALUES ('2', 'Elastic Knee (ES-701) -Medium', '400');"}]
["Elastic Knee -Extra Large",400,{"$f":"\"INSERT INTO `item` (`item_type_id`, `item_name`, `item_price`) VALUES ('2', '\"&A64&\"', '\"&B64&\"');\"","v":"INSERT INTO `item` (`item_type_id`, `item_name`, `item_price`) VALUES ('2', 'Elastic Knee -Extra Large', '400');"}]
["Elastic Knee -Large",400,{"$f":"\"INSERT INTO `item` (`item_type_id`, `item_name`, `item_price`) VALUES ('2', '\"&A65&\"', '\"&B65&\"');\"","v":"INSERT INTO `item` (`item_type_id`, `item_name`, `item_price`) VALUES ('2', 'Elastic Knee -Large', '400');"}]
["Elastic Knee -Medium",400,{"$f":"\"INSERT INTO `item` (`item_type_id`, `item_name`, `item_price`) VALUES ('2', '\"&A66&\"', '\"&B66&\"');\"","v":"INSERT INTO `item` (`item_type_id`, `item_name`, `item_price`) VALUES ('2', 'Elastic Knee -Medium', '400');"}]
["Elastic Knee Support (ES-701) -Extra Extra Large",400,{"$f":"\"INSERT INTO `item` (`item_type_id`, `item_name`, `item_price`) VALUES ('2', '\"&A67&\"', '\"&B67&\"');\"","v":"INSERT INTO `item` (`item_type_id`, `item_name`, `item_price`) VALUES ('2', 'Elastic Knee Support (ES-701) -Extra Extra Large', '400');"}]
["Elastic Knee Support (ES-701) -Extra Large",400,{"$f":"\"INSERT INTO `item` (`item_type_id`, `item_name`, `item_price`) VALUES ('2', '\"&A68&\"', '\"&B68&\"');\"","v":"INSERT INTO `item` (`item_type_id`, `item_name`, `item_price`) VALUES ('2', 'Elastic Knee Support (ES-701) -Extra Large', '400');"}]
["Elastic Knee Support (ES-701) -Large",400,{"$f":"\"INSERT INTO `item` (`item_type_id`, `item_name`, `item_price`) VALUES ('2', '\"&A69&\"', '\"&B69&\"');\"","v":"INSERT INTO `item` (`item_type_id`, `item_name`, `item_price`) VALUES ('2', 'Elastic Knee Support (ES-701) -Large', '400');"}]
["Elastic Knee Support (ES-701) -Medium",400,{"$f":"\"INSERT INTO `item` (`item_type_id`, `item_name`, `item_price`) VALUES ('2', '\"&A70&\"', '\"&B70&\"');\"","v":"INSERT INTO `item` (`item_type_id`, `item_name`, `item_price`) VALUES ('2', 'Elastic Knee Support (ES-701) -Medium', '400');"}]
["Elastic Knee Support (ES-701) -Small",400,{"$f":"\"INSERT INTO `item` (`item_type_id`, `item_name`, `item_price`) VALUES ('2', '\"&A71&\"', '\"&B71&\"');\"","v":"INSERT INTO `item` (`item_type_id`, `item_name`, `item_price`) VALUES ('2', 'Elastic Knee Support (ES-701) -Small', '400');"}]
["Encore Wrist Splint Right -Large",600,{"$f":"\"INSERT INTO `item` (`item_type_id`, `item_name`, `item_price`) VALUES ('2', '\"&A72&\"', '\"&B72&\"');\"","v":"INSERT INTO `item` (`item_type_id`, `item_name`, `item_price`) VALUES ('2', 'Encore Wrist Splint Right -Large', '600');"}]
["Energizer Battery 9V",135,{"$f":"\"INSERT INTO `item` (`item_type_id`, `item_name`, `item_price`) VALUES ('2', '\"&A73&\"', '\"&B73&\"');\"","v":"INSERT INTO `item` (`item_type_id`, `item_name`, `item_price`) VALUES ('2', 'Energizer Battery 9V', '135');"}]
["Energizer Battery AA set of 2",130,{"$f":"\"INSERT INTO `item` (`item_type_id`, `item_name`, `item_price`) VALUES ('2', '\"&A74&\"', '\"&B74&\"');\"","v":"INSERT INTO `item` (`item_type_id`, `item_name`, `item_price`) VALUES ('2', 'Energizer Battery AA set of 2', '130');"}]
["Energizer Battery AAA",130,{"$f":"\"INSERT INTO `item` (`item_type_id`, `item_name`, `item_price`) VALUES ('2', '\"&A75&\"', '\"&B75&\"');\"","v":"INSERT INTO `item` (`item_type_id`, `item_name`, `item_price`) VALUES ('2', 'Energizer Battery AAA', '130');"}]
["Eveready Battery AA set of 2",39,{"$f":"\"INSERT INTO `item` (`item_type_id`, `item_name`, `item_price`) VALUES ('2', '\"&A76&\"', '\"&B76&\"');\"","v":"INSERT INTO `item` (`item_type_id`, `item_name`, `item_price`) VALUES ('2', 'Eveready Battery AA set of 2', '39');"}]
["Eveready Battery AAA set of 2",59.25,{"$f":"\"INSERT INTO `item` (`item_type_id`, `item_name`, `item_price`) VALUES ('2', '\"&A77&\"', '\"&B77&\"');\"","v":"INSERT INTO `item` (`item_type_id`, `item_name`, `item_price`) VALUES ('2', 'Eveready Battery AAA set of 2', '59.25');"}]
["Face Mask 50\\'s (SURGITECH)",50,{"$f":"\"INSERT INTO `item` (`item_type_id`, `item_name`, `item_price`) VALUES ('2', '\"&A78&\"', '\"&B78&\"');\"","v":"INSERT INTO `item` (`item_type_id`, `item_name`, `item_price`) VALUES ('2', 'Face Mask 50\\'s (SURGITECH)', '50');"}]
["Fiberglass Prime Cast 4\" Blue",375,{"$f":"\"INSERT INTO `item` (`item_type_id`, `item_name`, `item_price`) VALUES ('2', '\"&A79&\"', '\"&B79&\"');\"","v":"INSERT INTO `item` (`item_type_id`, `item_name`, `item_price`) VALUES ('2', 'Fiberglass Prime Cast 4\" Blue', '375');"}]
["Fiberglass Splint 2\"",350,{"$f":"\"INSERT INTO `item` (`item_type_id`, `item_name`, `item_price`) VALUES ('2', '\"&A80&\"', '\"&B80&\"');\"","v":"INSERT INTO `item` (`item_type_id`, `item_name`, `item_price`) VALUES ('2', 'Fiberglass Splint 2\"', '350');"}]
["Fiberglass Splint 4\"",600,{"$f":"\"INSERT INTO `item` (`item_type_id`, `item_name`, `item_price`) VALUES ('2', '\"&A81&\"', '\"&B81&\"');\"","v":"INSERT INTO `item` (`item_type_id`, `item_name`, `item_price`) VALUES ('2', 'Fiberglass Splint 4\"', '600');"}]
["Fiberglass Splint 5\"",800,{"$f":"\"INSERT INTO `item` (`item_type_id`, `item_name`, `item_price`) VALUES ('2', '\"&A82&\"', '\"&B82&\"');\"","v":"INSERT INTO `item` (`item_type_id`, `item_name`, `item_price`) VALUES ('2', 'Fiberglass Splint 5\"', '800');"}]
["Finger Splint",250,{"$f":"\"INSERT INTO `item` (`item_type_id`, `item_name`, `item_price`) VALUES ('2', '\"&A83&\"', '\"&B83&\"');\"","v":"INSERT INTO `item` (`item_type_id`, `item_name`, `item_price`) VALUES ('2', 'Finger Splint', '250');"}]
["Forearm Splint",800,{"$f":"\"INSERT INTO `item` (`item_type_id`, `item_name`, `item_price`) VALUES ('2', '\"&A84&\"', '\"&B84&\"');\"","v":"INSERT INTO `item` (`item_type_id`, `item_name`, `item_price`) VALUES ('2', 'Forearm Splint', '800');"}]
["Heel Cup -Large",500,{"$f":"\"INSERT INTO `item` (`item_type_id`, `item_name`, `item_price`) VALUES ('2', '\"&A85&\"', '\"&B85&\"');\"","v":"INSERT INTO `item` (`item_type_id`, `item_name`, `item_price`) VALUES ('2', 'Heel Cup -Large', '500');"}]
["Heel Cup -Medium",500,{"$f":"\"INSERT INTO `item` (`item_type_id`, `item_name`, `item_price`) VALUES ('2', '\"&A86&\"', '\"&B86&\"');\"","v":"INSERT INTO `item` (`item_type_id`, `item_name`, `item_price`) VALUES ('2', 'Heel Cup -Medium', '500');"}]
["Heel Cup -Small",500,{"$f":"\"INSERT INTO `item` (`item_type_id`, `item_name`, `item_price`) VALUES ('2', '\"&A87&\"', '\"&B87&\"');\"","v":"INSERT INTO `item` (`item_type_id`, `item_name`, `item_price`) VALUES ('2', 'Heel Cup -Small', '500');"}]
["Hinged Knee Brace (NS-704) -Extra Large",1650,{"$f":"\"INSERT INTO `item` (`item_type_id`, `item_name`, `item_price`) VALUES ('2', '\"&A88&\"', '\"&B88&\"');\"","v":"INSERT INTO `item` (`item_type_id`, `item_name`, `item_price`) VALUES ('2', 'Hinged Knee Brace (NS-704) -Extra Large', '1650');"}]
["Hinged Knee Brace (NS-704) -Large",1650,{"$f":"\"INSERT INTO `item` (`item_type_id`, `item_name`, `item_price`) VALUES ('2', '\"&A89&\"', '\"&B89&\"');\"","v":"INSERT INTO `item` (`item_type_id`, `item_name`, `item_price`) VALUES ('2', 'Hinged Knee Brace (NS-704) -Large', '1650');"}]
["Hinged Knee Brace (NS-704) -Medium",1650,{"$f":"\"INSERT INTO `item` (`item_type_id`, `item_name`, `item_price`) VALUES ('2', '\"&A90&\"', '\"&B90&\"');\"","v":"INSERT INTO `item` (`item_type_id`, `item_name`, `item_price`) VALUES ('2', 'Hinged Knee Brace (NS-704) -Medium', '1650');"}]
["Hinged Knee Brace (NS-704) -Small",1650,{"$f":"\"INSERT INTO `item` (`item_type_id`, `item_name`, `item_price`) VALUES ('2', '\"&A91&\"', '\"&B91&\"');\"","v":"INSERT INTO `item` (`item_type_id`, `item_name`, `item_price`) VALUES ('2', 'Hinged Knee Brace (NS-704) -Small', '1650');"}]
["Hinged Knee Brace -Extra Large",1650,{"$f":"\"INSERT INTO `item` (`item_type_id`, `item_name`, `item_price`) VALUES ('2', '\"&A92&\"', '\"&B92&\"');\"","v":"INSERT INTO `item` (`item_type_id`, `item_name`, `item_price`) VALUES ('2', 'Hinged Knee Brace -Extra Large', '1650');"}]
["Hinged Knee Brace -Large",1650,{"$f":"\"INSERT INTO `item` (`item_type_id`, `item_name`, `item_price`) VALUES ('2', '\"&A93&\"', '\"&B93&\"');\"","v":"INSERT INTO `item` (`item_type_id`, `item_name`, `item_price`) VALUES ('2', 'Hinged Knee Brace -Large', '1650');"}]
["Hinged Knee Brace -Medium",1650,{"$f":"\"INSERT INTO `item` (`item_type_id`, `item_name`, `item_price`) VALUES ('2', '\"&A94&\"', '\"&B94&\"');\"","v":"INSERT INTO `item` (`item_type_id`, `item_name`, `item_price`) VALUES ('2', 'Hinged Knee Brace -Medium', '1650');"}]
["Hinged Knee Brace -Small",1650,{"$f":"\"INSERT INTO `item` (`item_type_id`, `item_name`, `item_price`) VALUES ('2', '\"&A95&\"', '\"&B95&\"');\"","v":"INSERT INTO `item` (`item_type_id`, `item_name`, `item_price`) VALUES ('2', 'Hinged Knee Brace -Small', '1650');"}]
["Hot Moist Pack 00-092 Cervical",930,{"$f":"\"INSERT INTO `item` (`item_type_id`, `item_name`, `item_price`) VALUES ('2', '\"&A96&\"', '\"&B96&\"');\"","v":"INSERT INTO `item` (`item_type_id`, `item_name`, `item_price`) VALUES ('2', 'Hot Moist Pack 00-092 Cervical', '930');"}]
["Hot Moist Pack 00-093 Spinal 10\"x18\"",930,{"$f":"\"INSERT INTO `item` (`item_type_id`, `item_name`, `item_price`) VALUES ('2', '\"&A97&\"', '\"&B97&\"');\"","v":"INSERT INTO `item` (`item_type_id`, `item_name`, `item_price`) VALUES ('2', 'Hot Moist Pack 00-093 Spinal 10\"x18\"', '930');"}]
["Hot Water Bag 1000ML",150,{"$f":"\"INSERT INTO `item` (`item_type_id`, `item_name`, `item_price`) VALUES ('2', '\"&A98&\"', '\"&B98&\"');\"","v":"INSERT INTO `item` (`item_type_id`, `item_name`, `item_price`) VALUES ('2', 'Hot Water Bag 1000ML', '150');"}]
["Hot Water Bag 2000ML -Big",175,{"$f":"\"INSERT INTO `item` (`item_type_id`, `item_name`, `item_price`) VALUES ('2', '\"&A99&\"', '\"&B99&\"');\"","v":"INSERT INTO `item` (`item_type_id`, `item_name`, `item_price`) VALUES ('2', 'Hot Water Bag 2000ML -Big', '175');"}]
["Hot Water Bag 500ML",100,{"$f":"\"INSERT INTO `item` (`item_type_id`, `item_name`, `item_price`) VALUES ('2', '\"&A100&\"', '\"&B100&\"');\"","v":"INSERT INTO `item` (`item_type_id`, `item_name`, `item_price`) VALUES ('2', 'Hot Water Bag 500ML', '100');"}]
["Ice Cupp 6inch",100,{"$f":"\"INSERT INTO `item` (`item_type_id`, `item_name`, `item_price`) VALUES ('2', '\"&A101&\"', '\"&B101&\"');\"","v":"INSERT INTO `item` (`item_type_id`, `item_name`, `item_price`) VALUES ('2', 'Ice Cupp 6inch', '100');"}]
["Ice Cupp 8inch",150,{"$f":"\"INSERT INTO `item` (`item_type_id`, `item_name`, `item_price`) VALUES ('2', '\"&A102&\"', '\"&B102&\"');\"","v":"INSERT INTO `item` (`item_type_id`, `item_name`, `item_price`) VALUES ('2', 'Ice Cupp 8inch', '150');"}]
["Knee Immobilizer 18\" -Medium",2000,{"$f":"\"INSERT INTO `item` (`item_type_id`, `item_name`, `item_price`) VALUES ('2', '\"&A103&\"', '\"&B103&\"');\"","v":"INSERT INTO `item` (`item_type_id`, `item_name`, `item_price`) VALUES ('2', 'Knee Immobilizer 18\" -Medium', '2000');"}]
["Knee Immobilizer 18\" -Small",2000,{"$f":"\"INSERT INTO `item` (`item_type_id`, `item_name`, `item_price`) VALUES ('2', '\"&A104&\"', '\"&B104&\"');\"","v":"INSERT INTO `item` (`item_type_id`, `item_name`, `item_price`) VALUES ('2', 'Knee Immobilizer 18\" -Small', '2000');"}]
["Knee Immobilizer 21\" -Large",1500,{"$f":"\"INSERT INTO `item` (`item_type_id`, `item_name`, `item_price`) VALUES ('2', '\"&A105&\"', '\"&B105&\"');\"","v":"INSERT INTO `item` (`item_type_id`, `item_name`, `item_price`) VALUES ('2', 'Knee Immobilizer 21\" -Large', '1500');"}]
["Knee Immobilizer 21\" -Medium",1500,{"$f":"\"INSERT INTO `item` (`item_type_id`, `item_name`, `item_price`) VALUES ('2', '\"&A106&\"', '\"&B106&\"');\"","v":"INSERT INTO `item` (`item_type_id`, `item_name`, `item_price`) VALUES ('2', 'Knee Immobilizer 21\" -Medium', '1500');"}]
["Knee Immobilizer Black Eco 21\" -Large",1500,{"$f":"\"INSERT INTO `item` (`item_type_id`, `item_name`, `item_price`) VALUES ('2', '\"&A107&\"', '\"&B107&\"');\"","v":"INSERT INTO `item` (`item_type_id`, `item_name`, `item_price`) VALUES ('2', 'Knee Immobilizer Black Eco 21\" -Large', '1500');"}]
["Knee Immobilizer Black Eco 21\" -Medium",1500,{"$f":"\"INSERT INTO `item` (`item_type_id`, `item_name`, `item_price`) VALUES ('2', '\"&A108&\"', '\"&B108&\"');\"","v":"INSERT INTO `item` (`item_type_id`, `item_name`, `item_price`) VALUES ('2', 'Knee Immobilizer Black Eco 21\" -Medium', '1500');"}]
["Knee Immobilizer Black Eco 21\" -Small",1500,{"$f":"\"INSERT INTO `item` (`item_type_id`, `item_name`, `item_price`) VALUES ('2', '\"&A109&\"', '\"&B109&\"');\"","v":"INSERT INTO `item` (`item_type_id`, `item_name`, `item_price`) VALUES ('2', 'Knee Immobilizer Black Eco 21\" -Small', '1500');"}]
["Knee Immobilizer Blue 18\" -Medium",2000,{"$f":"\"INSERT INTO `item` (`item_type_id`, `item_name`, `item_price`) VALUES ('2', '\"&A110&\"', '\"&B110&\"');\"","v":"INSERT INTO `item` (`item_type_id`, `item_name`, `item_price`) VALUES ('2', 'Knee Immobilizer Blue 18\" -Medium', '2000');"}]
["Knee Immobilizer Blue 21\" -Large",2000,{"$f":"\"INSERT INTO `item` (`item_type_id`, `item_name`, `item_price`) VALUES ('2', '\"&A111&\"', '\"&B111&\"');\"","v":"INSERT INTO `item` (`item_type_id`, `item_name`, `item_price`) VALUES ('2', 'Knee Immobilizer Blue 21\" -Large', '2000');"}]
["Knee Immobilizer Blue -Large",2000,{"$f":"\"INSERT INTO `item` (`item_type_id`, `item_name`, `item_price`) VALUES ('2', '\"&A112&\"', '\"&B112&\"');\"","v":"INSERT INTO `item` (`item_type_id`, `item_name`, `item_price`) VALUES ('2', 'Knee Immobilizer Blue -Large', '2000');"}]
["Knee Immobilizer Blue -Medium",2000,{"$f":"\"INSERT INTO `item` (`item_type_id`, `item_name`, `item_price`) VALUES ('2', '\"&A113&\"', '\"&B113&\"');\"","v":"INSERT INTO `item` (`item_type_id`, `item_name`, `item_price`) VALUES ('2', 'Knee Immobilizer Blue -Medium', '2000');"}]
["Knee Immobilizer Green Eco -Large",1500,{"$f":"\"INSERT INTO `item` (`item_type_id`, `item_name`, `item_price`) VALUES ('2', '\"&A114&\"', '\"&B114&\"');\"","v":"INSERT INTO `item` (`item_type_id`, `item_name`, `item_price`) VALUES ('2', 'Knee Immobilizer Green Eco -Large', '1500');"}]
["Knee Immobilizer Green Eco -Medium",1500,{"$f":"\"INSERT INTO `item` (`item_type_id`, `item_name`, `item_price`) VALUES ('2', '\"&A115&\"', '\"&B115&\"');\"","v":"INSERT INTO `item` (`item_type_id`, `item_name`, `item_price`) VALUES ('2', 'Knee Immobilizer Green Eco -Medium', '1500');"}]
["Knee Patella (NS-703) -Large",750,{"$f":"\"INSERT INTO `item` (`item_type_id`, `item_name`, `item_price`) VALUES ('2', '\"&A116&\"', '\"&B116&\"');\"","v":"INSERT INTO `item` (`item_type_id`, `item_name`, `item_price`) VALUES ('2', 'Knee Patella (NS-703) -Large', '750');"}]
["Knee Patella (NS-703) -Medium",750,{"$f":"\"INSERT INTO `item` (`item_type_id`, `item_name`, `item_price`) VALUES ('2', '\"&A117&\"', '\"&B117&\"');\"","v":"INSERT INTO `item` (`item_type_id`, `item_name`, `item_price`) VALUES ('2', 'Knee Patella (NS-703) -Medium', '750');"}]
["Knee Support -Extra Extra Lage",400,{"$f":"\"INSERT INTO `item` (`item_type_id`, `item_name`, `item_price`) VALUES ('2', '\"&A118&\"', '\"&B118&\"');\"","v":"INSERT INTO `item` (`item_type_id`, `item_name`, `item_price`) VALUES ('2', 'Knee Support -Extra Extra Lage', '400');"}]
["Knee Support -Extra Extra Large",400,{"$f":"\"INSERT INTO `item` (`item_type_id`, `item_name`, `item_price`) VALUES ('2', '\"&A119&\"', '\"&B119&\"');\"","v":"INSERT INTO `item` (`item_type_id`, `item_name`, `item_price`) VALUES ('2', 'Knee Support -Extra Extra Large', '400');"}]
["Knee Support -Extra Large",400,{"$f":"\"INSERT INTO `item` (`item_type_id`, `item_name`, `item_price`) VALUES ('2', '\"&A120&\"', '\"&B120&\"');\"","v":"INSERT INTO `item` (`item_type_id`, `item_name`, `item_price`) VALUES ('2', 'Knee Support -Extra Large', '400');"}]
["Knee Support Immobilizer Blue -Extra Large",2000,{"$f":"\"INSERT INTO `item` (`item_type_id`, `item_name`, `item_price`) VALUES ('2', '\"&A121&\"', '\"&B121&\"');\"","v":"INSERT INTO `item` (`item_type_id`, `item_name`, `item_price`) VALUES ('2', 'Knee Support Immobilizer Blue -Extra Large', '2000');"}]
["Knee Support -Large",400,{"$f":"\"INSERT INTO `item` (`item_type_id`, `item_name`, `item_price`) VALUES ('2', '\"&A122&\"', '\"&B122&\"');\"","v":"INSERT INTO `item` (`item_type_id`, `item_name`, `item_price`) VALUES ('2', 'Knee Support -Large', '400');"}]
["Knee Support -Medium",400,{"$f":"\"INSERT INTO `item` (`item_type_id`, `item_name`, `item_price`) VALUES ('2', '\"&A123&\"', '\"&B123&\"');\"","v":"INSERT INTO `item` (`item_type_id`, `item_name`, `item_price`) VALUES ('2', 'Knee Support -Medium', '400');"}]
["Knight Tylor Brace -Medium",8500,{"$f":"\"INSERT INTO `item` (`item_type_id`, `item_name`, `item_price`) VALUES ('2', '\"&A124&\"', '\"&B124&\"');\"","v":"INSERT INTO `item` (`item_type_id`, `item_name`, `item_price`) VALUES ('2', 'Knight Tylor Brace -Medium', '8500');"}]
["Lidocane",200,{"$f":"\"INSERT INTO `item` (`item_type_id`, `item_name`, `item_price`) VALUES ('2', '\"&A125&\"', '\"&B125&\"');\"","v":"INSERT INTO `item` (`item_type_id`, `item_name`, `item_price`) VALUES ('2', 'Lidocane', '200');"}]
["Ligament Knee Support (NS-706) -Medium",1500,{"$f":"\"INSERT INTO `item` (`item_type_id`, `item_name`, `item_price`) VALUES ('2', '\"&A126&\"', '\"&B126&\"');\"","v":"INSERT INTO `item` (`item_type_id`, `item_name`, `item_price`) VALUES ('2', 'Ligament Knee Support (NS-706) -Medium', '1500');"}]
["Local Aluminum Walker",1600,{"$f":"\"INSERT INTO `item` (`item_type_id`, `item_name`, `item_price`) VALUES ('2', '\"&A127&\"', '\"&B127&\"');\"","v":"INSERT INTO `item` (`item_type_id`, `item_name`, `item_price`) VALUES ('2', 'Local Aluminum Walker', '1600');"}]
["Longbone Collar Blue -Large",650,{"$f":"\"INSERT INTO `item` (`item_type_id`, `item_name`, `item_price`) VALUES ('2', '\"&A128&\"', '\"&B128&\"');\"","v":"INSERT INTO `item` (`item_type_id`, `item_name`, `item_price`) VALUES ('2', 'Longbone Collar Blue -Large', '650');"}]
["Longbone Collar Blue -Medium",650,{"$f":"\"INSERT INTO `item` (`item_type_id`, `item_name`, `item_price`) VALUES ('2', '\"&A129&\"', '\"&B129&\"');\"","v":"INSERT INTO `item` (`item_type_id`, `item_name`, `item_price`) VALUES ('2', 'Longbone Collar Blue -Medium', '650');"}]
["Longbone Wrist Splint Left -Medium",500,{"$f":"\"INSERT INTO `item` (`item_type_id`, `item_name`, `item_price`) VALUES ('2', '\"&A130&\"', '\"&B130&\"');\"","v":"INSERT INTO `item` (`item_type_id`, `item_name`, `item_price`) VALUES ('2', 'Longbone Wrist Splint Left -Medium', '500');"}]
["Longbone Wrist Splint Left -Small",500,{"$f":"\"INSERT INTO `item` (`item_type_id`, `item_name`, `item_price`) VALUES ('2', '\"&A131&\"', '\"&B131&\"');\"","v":"INSERT INTO `item` (`item_type_id`, `item_name`, `item_price`) VALUES ('2', 'Longbone Wrist Splint Left -Small', '500');"}]
["Longbone Wrist Splint Right -Large",500,{"$f":"\"INSERT INTO `item` (`item_type_id`, `item_name`, `item_price`) VALUES ('2', '\"&A132&\"', '\"&B132&\"');\"","v":"INSERT INTO `item` (`item_type_id`, `item_name`, `item_price`) VALUES ('2', 'Longbone Wrist Splint Right -Large', '500');"}]
["Longbone Wrist Splint Right -Medium",500,{"$f":"\"INSERT INTO `item` (`item_type_id`, `item_name`, `item_price`) VALUES ('2', '\"&A133&\"', '\"&B133&\"');\"","v":"INSERT INTO `item` (`item_type_id`, `item_name`, `item_price`) VALUES ('2', 'Longbone Wrist Splint Right -Medium', '500');"}]
["Longbone Wrist Splint Right -Small",500,{"$f":"\"INSERT INTO `item` (`item_type_id`, `item_name`, `item_price`) VALUES ('2', '\"&A134&\"', '\"&B134&\"');\"","v":"INSERT INTO `item` (`item_type_id`, `item_name`, `item_price`) VALUES ('2', 'Longbone Wrist Splint Right -Small', '500');"}]
["Lumbar (EB-512) -Extra Extra Extra Large (Triple Extra Large)",2000,{"$f":"\"INSERT INTO `item` (`item_type_id`, `item_name`, `item_price`) VALUES ('2', '\"&A135&\"', '\"&B135&\"');\"","v":"INSERT INTO `item` (`item_type_id`, `item_name`, `item_price`) VALUES ('2', 'Lumbar (EB-512) -Extra Extra Extra Large (Triple Extra Large)', '2000');"}]
["Lumbar (WB-577) -Large/Extra Large",2100,{"$f":"\"INSERT INTO `item` (`item_type_id`, `item_name`, `item_price`) VALUES ('2', '\"&A136&\"', '\"&B136&\"');\"","v":"INSERT INTO `item` (`item_type_id`, `item_name`, `item_price`) VALUES ('2', 'Lumbar (WB-577) -Large/Extra Large', '2100');"}]
["Lumbar (WB-577) -Small/Extra Small",2100,{"$f":"\"INSERT INTO `item` (`item_type_id`, `item_name`, `item_price`) VALUES ('2', '\"&A137&\"', '\"&B137&\"');\"","v":"INSERT INTO `item` (`item_type_id`, `item_name`, `item_price`) VALUES ('2', 'Lumbar (WB-577) -Small/Extra Small', '2100');"}]
["Lumbar (WB-577) -Small/Medium",2100,{"$f":"\"INSERT INTO `item` (`item_type_id`, `item_name`, `item_price`) VALUES ('2', '\"&A138&\"', '\"&B138&\"');\"","v":"INSERT INTO `item` (`item_type_id`, `item_name`, `item_price`) VALUES ('2', 'Lumbar (WB-577) -Small/Medium', '2100');"}]
["Lumbar Eco -Extra Extra Large",1300,{"$f":"\"INSERT INTO `item` (`item_type_id`, `item_name`, `item_price`) VALUES ('2', '\"&A139&\"', '\"&B139&\"');\"","v":"INSERT INTO `item` (`item_type_id`, `item_name`, `item_price`) VALUES ('2', 'Lumbar Eco -Extra Extra Large', '1300');"}]
["Lumbar Eco -Extra Large",1300,{"$f":"\"INSERT INTO `item` (`item_type_id`, `item_name`, `item_price`) VALUES ('2', '\"&A140&\"', '\"&B140&\"');\"","v":"INSERT INTO `item` (`item_type_id`, `item_name`, `item_price`) VALUES ('2', 'Lumbar Eco -Extra Large', '1300');"}]
["Lumbar Eco -Medium",1300,{"$f":"\"INSERT INTO `item` (`item_type_id`, `item_name`, `item_price`) VALUES ('2', '\"&A141&\"', '\"&B141&\"');\"","v":"INSERT INTO `item` (`item_type_id`, `item_name`, `item_price`) VALUES ('2', 'Lumbar Eco -Medium', '1300');"}]
["Lumbar Starleaf -Extra Extra Large",1300,{"$f":"\"INSERT INTO `item` (`item_type_id`, `item_name`, `item_price`) VALUES ('2', '\"&A142&\"', '\"&B142&\"');\"","v":"INSERT INTO `item` (`item_type_id`, `item_name`, `item_price`) VALUES ('2', 'Lumbar Starleaf -Extra Extra Large', '1300');"}]
["Lumbar Starleaf -Extra Large",1300,{"$f":"\"INSERT INTO `item` (`item_type_id`, `item_name`, `item_price`) VALUES ('2', '\"&A143&\"', '\"&B143&\"');\"","v":"INSERT INTO `item` (`item_type_id`, `item_name`, `item_price`) VALUES ('2', 'Lumbar Starleaf -Extra Large', '1300');"}]
["Lumbar Starleaf -Large",1300,{"$f":"\"INSERT INTO `item` (`item_type_id`, `item_name`, `item_price`) VALUES ('2', '\"&A144&\"', '\"&B144&\"');\"","v":"INSERT INTO `item` (`item_type_id`, `item_name`, `item_price`) VALUES ('2', 'Lumbar Starleaf -Large', '1300');"}]
["Lumbar Support (WB-504) -Extra Extra Large",1800,{"$f":"\"INSERT INTO `item` (`item_type_id`, `item_name`, `item_price`) VALUES ('2', '\"&A145&\"', '\"&B145&\"');\"","v":"INSERT INTO `item` (`item_type_id`, `item_name`, `item_price`) VALUES ('2', 'Lumbar Support (WB-504) -Extra Extra Large', '1800');"}]
["Lumbar Support (WB-504) -Extra Large",1800,{"$f":"\"INSERT INTO `item` (`item_type_id`, `item_name`, `item_price`) VALUES ('2', '\"&A146&\"', '\"&B146&\"');\"","v":"INSERT INTO `item` (`item_type_id`, `item_name`, `item_price`) VALUES ('2', 'Lumbar Support (WB-504) -Extra Large', '1800');"}]
["Lumbar Support (WB-504) -Large",1800,{"$f":"\"INSERT INTO `item` (`item_type_id`, `item_name`, `item_price`) VALUES ('2', '\"&A147&\"', '\"&B147&\"');\"","v":"INSERT INTO `item` (`item_type_id`, `item_name`, `item_price`) VALUES ('2', 'Lumbar Support (WB-504) -Large', '1800');"}]
["Lumbar Support (WB-504) -Medium",1800,{"$f":"\"INSERT INTO `item` (`item_type_id`, `item_name`, `item_price`) VALUES ('2', '\"&A148&\"', '\"&B148&\"');\"","v":"INSERT INTO `item` (`item_type_id`, `item_name`, `item_price`) VALUES ('2', 'Lumbar Support (WB-504) -Medium', '1800');"}]
["Lumbar Support (WB-577) -Large/Extra Large",2100,{"$f":"\"INSERT INTO `item` (`item_type_id`, `item_name`, `item_price`) VALUES ('2', '\"&A149&\"', '\"&B149&\"');\"","v":"INSERT INTO `item` (`item_type_id`, `item_name`, `item_price`) VALUES ('2', 'Lumbar Support (WB-577) -Large/Extra Large', '2100');"}]
["Lumbar Support (WB-577) -Small/Medium",2100,{"$f":"\"INSERT INTO `item` (`item_type_id`, `item_name`, `item_price`) VALUES ('2', '\"&A150&\"', '\"&B150&\"');\"","v":"INSERT INTO `item` (`item_type_id`, `item_name`, `item_price`) VALUES ('2', 'Lumbar Support (WB-577) -Small/Medium', '2100');"}]
["Lumbar Support -Extra Large",1800,{"$f":"\"INSERT INTO `item` (`item_type_id`, `item_name`, `item_price`) VALUES ('2', '\"&A151&\"', '\"&B151&\"');\"","v":"INSERT INTO `item` (`item_type_id`, `item_name`, `item_price`) VALUES ('2', 'Lumbar Support -Extra Large', '1800');"}]
["Lumbar Support -Extra Small",1800,{"$f":"\"INSERT INTO `item` (`item_type_id`, `item_name`, `item_price`) VALUES ('2', '\"&A152&\"', '\"&B152&\"');\"","v":"INSERT INTO `item` (`item_type_id`, `item_name`, `item_price`) VALUES ('2', 'Lumbar Support -Extra Small', '1800');"}]
["Lumbar Support -Large",1800,{"$f":"\"INSERT INTO `item` (`item_type_id`, `item_name`, `item_price`) VALUES ('2', '\"&A153&\"', '\"&B153&\"');\"","v":"INSERT INTO `item` (`item_type_id`, `item_name`, `item_price`) VALUES ('2', 'Lumbar Support -Large', '1800');"}]
["Lumbar Support -Medium",1800,{"$f":"\"INSERT INTO `item` (`item_type_id`, `item_name`, `item_price`) VALUES ('2', '\"&A154&\"', '\"&B154&\"');\"","v":"INSERT INTO `item` (`item_type_id`, `item_name`, `item_price`) VALUES ('2', 'Lumbar Support -Medium', '1800');"}]
["Medical Compression Stocking Dr. S Ortho -Large",1400,{"$f":"\"INSERT INTO `item` (`item_type_id`, `item_name`, `item_price`) VALUES ('2', '\"&A155&\"', '\"&B155&\"');\"","v":"INSERT INTO `item` (`item_type_id`, `item_name`, `item_price`) VALUES ('2', 'Medical Compression Stocking Dr. S Ortho -Large', '1400');"}]
["Medical Compression Stockings Thigh High 20-30mmHg -Extra Large",1600,{"$f":"\"INSERT INTO `item` (`item_type_id`, `item_name`, `item_price`) VALUES ('2', '\"&A156&\"', '\"&B156&\"');\"","v":"INSERT INTO `item` (`item_type_id`, `item_name`, `item_price`) VALUES ('2', 'Medical Compression Stockings Thigh High 20-30mmHg -Extra Large', '1600');"}]
["Medical Compression Stockings Thigh High 20-30mmHg -Large",1600,{"$f":"\"INSERT INTO `item` (`item_type_id`, `item_name`, `item_price`) VALUES ('2', '\"&A157&\"', '\"&B157&\"');\"","v":"INSERT INTO `item` (`item_type_id`, `item_name`, `item_price`) VALUES ('2', 'Medical Compression Stockings Thigh High 20-30mmHg -Large', '1600');"}]
["Medical Compression Stockings Thigh High 20-30mmHg -Medium",1600,{"$f":"\"INSERT INTO `item` (`item_type_id`, `item_name`, `item_price`) VALUES ('2', '\"&A158&\"', '\"&B158&\"');\"","v":"INSERT INTO `item` (`item_type_id`, `item_name`, `item_price`) VALUES ('2', 'Medical Compression Stockings Thigh High 20-30mmHg -Medium', '1600');"}]
["Medical Compression Stockings Thigh High 20-30mmHg -Small",1600,{"$f":"\"INSERT INTO `item` (`item_type_id`, `item_name`, `item_price`) VALUES ('2', '\"&A159&\"', '\"&B159&\"');\"","v":"INSERT INTO `item` (`item_type_id`, `item_name`, `item_price`) VALUES ('2', 'Medical Compression Stockings Thigh High 20-30mmHg -Small', '1600');"}]
["Micropore (1/2)\"",20,{"$f":"\"INSERT INTO `item` (`item_type_id`, `item_name`, `item_price`) VALUES ('2', '\"&A160&\"', '\"&B160&\"');\"","v":"INSERT INTO `item` (`item_type_id`, `item_name`, `item_price`) VALUES ('2', 'Micropore (1/2)\"', '20');"}]
["Micropore 1\"",20,{"$f":"\"INSERT INTO `item` (`item_type_id`, `item_name`, `item_price`) VALUES ('2', '\"&A161&\"', '\"&B161&\"');\"","v":"INSERT INTO `item` (`item_type_id`, `item_name`, `item_price`) VALUES ('2', 'Micropore 1\"', '20');"}]
["MTI Digital Arm BP Economy",1900,{"$f":"\"INSERT INTO `item` (`item_type_id`, `item_name`, `item_price`) VALUES ('2', '\"&A162&\"', '\"&B162&\"');\"","v":"INSERT INTO `item` (`item_type_id`, `item_name`, `item_price`) VALUES ('2', 'MTI Digital Arm BP Economy', '1900');"}]
["MTI Hot /Cold Gel Pack",300,{"$f":"\"INSERT INTO `item` (`item_type_id`, `item_name`, `item_price`) VALUES ('2', '\"&A163&\"', '\"&B163&\"');\"","v":"INSERT INTO `item` (`item_type_id`, `item_name`, `item_price`) VALUES ('2', 'MTI Hot /Cold Gel Pack', '300');"}]
["Neoprene Ankle Support Lycra (NS-903)",600,{"$f":"\"INSERT INTO `item` (`item_type_id`, `item_name`, `item_price`) VALUES ('2', '\"&A164&\"', '\"&B164&\"');\"","v":"INSERT INTO `item` (`item_type_id`, `item_name`, `item_price`) VALUES ('2', 'Neoprene Ankle Support Lycra (NS-903)', '600');"}]
["Neoprene Knee Support Lycra (NS-707)",800,{"$f":"\"INSERT INTO `item` (`item_type_id`, `item_name`, `item_price`) VALUES ('2', '\"&A165&\"', '\"&B165&\"');\"","v":"INSERT INTO `item` (`item_type_id`, `item_name`, `item_price`) VALUES ('2', 'Neoprene Knee Support Lycra (NS-707)', '800');"}]
["Neoprene Knee Support NS-701 -Extra Large",600,{"$f":"\"INSERT INTO `item` (`item_type_id`, `item_name`, `item_price`) VALUES ('2', '\"&A166&\"', '\"&B166&\"');\"","v":"INSERT INTO `item` (`item_type_id`, `item_name`, `item_price`) VALUES ('2', 'Neoprene Knee Support NS-701 -Extra Large', '600');"}]
["Neoprene Knee Support NS-701 -Large",600,{"$f":"\"INSERT INTO `item` (`item_type_id`, `item_name`, `item_price`) VALUES ('2', '\"&A167&\"', '\"&B167&\"');\"","v":"INSERT INTO `item` (`item_type_id`, `item_name`, `item_price`) VALUES ('2', 'Neoprene Knee Support NS-701 -Large', '600');"}]
["Neoprene Knee Support NS-701 -Medium",600,{"$f":"\"INSERT INTO `item` (`item_type_id`, `item_name`, `item_price`) VALUES ('2', '\"&A168&\"', '\"&B168&\"');\"","v":"INSERT INTO `item` (`item_type_id`, `item_name`, `item_price`) VALUES ('2', 'Neoprene Knee Support NS-701 -Medium', '600');"}]
["Non-adhesive Dressing",50,{"$f":"\"INSERT INTO `item` (`item_type_id`, `item_name`, `item_price`) VALUES ('2', '\"&A169&\"', '\"&B169&\"');\"","v":"INSERT INTO `item` (`item_type_id`, `item_name`, `item_price`) VALUES ('2', 'Non-adhesive Dressing', '50');"}]
["Non-stick",50,{"$f":"\"INSERT INTO `item` (`item_type_id`, `item_name`, `item_price`) VALUES ('2', '\"&A170&\"', '\"&B170&\"');\"","v":"INSERT INTO `item` (`item_type_id`, `item_name`, `item_price`) VALUES ('2', 'Non-stick', '50');"}]
["NSS",100,{"$f":"\"INSERT INTO `item` (`item_type_id`, `item_name`, `item_price`) VALUES ('2', '\"&A171&\"', '\"&B171&\"');\"","v":"INSERT INTO `item` (`item_type_id`, `item_name`, `item_price`) VALUES ('2', 'NSS', '100');"}]
["Plaster of Paris 2\"",100,{"$f":"\"INSERT INTO `item` (`item_type_id`, `item_name`, `item_price`) VALUES ('2', '\"&A172&\"', '\"&B172&\"');\"","v":"INSERT INTO `item` (`item_type_id`, `item_name`, `item_price`) VALUES ('2', 'Plaster of Paris 2\"', '100');"}]
["Plaster of Paris 4\"",350,{"$f":"\"INSERT INTO `item` (`item_type_id`, `item_name`, `item_price`) VALUES ('2', '\"&A173&\"', '\"&B173&\"');\"","v":"INSERT INTO `item` (`item_type_id`, `item_name`, `item_price`) VALUES ('2', 'Plaster of Paris 4\"', '350');"}]
["Plaster of Paris 6\"",350,{"$f":"\"INSERT INTO `item` (`item_type_id`, `item_name`, `item_price`) VALUES ('2', '\"&A174&\"', '\"&B174&\"');\"","v":"INSERT INTO `item` (`item_type_id`, `item_name`, `item_price`) VALUES ('2', 'Plaster of Paris 6\"', '350');"}]
["Prime Cast 2\" Blue",235,{"$f":"\"INSERT INTO `item` (`item_type_id`, `item_name`, `item_price`) VALUES ('2', '\"&A175&\"', '\"&B175&\"');\"","v":"INSERT INTO `item` (`item_type_id`, `item_name`, `item_price`) VALUES ('2', 'Prime Cast 2\" Blue', '235');"}]
["Prime Cast 3\" Blue",325,{"$f":"\"INSERT INTO `item` (`item_type_id`, `item_name`, `item_price`) VALUES ('2', '\"&A176&\"', '\"&B176&\"');\"","v":"INSERT INTO `item` (`item_type_id`, `item_name`, `item_price`) VALUES ('2', 'Prime Cast 3\" Blue', '325');"}]
["Prime Cast 4\" Blue",375,{"$f":"\"INSERT INTO `item` (`item_type_id`, `item_name`, `item_price`) VALUES ('2', '\"&A177&\"', '\"&B177&\"');\"","v":"INSERT INTO `item` (`item_type_id`, `item_name`, `item_price`) VALUES ('2', 'Prime Cast 4\" Blue', '375');"}]
["Prime Cast 5\" Blue",425,{"$f":"\"INSERT INTO `item` (`item_type_id`, `item_name`, `item_price`) VALUES ('2', '\"&A178&\"', '\"&B178&\"');\"","v":"INSERT INTO `item` (`item_type_id`, `item_name`, `item_price`) VALUES ('2', 'Prime Cast 5\" Blue', '425');"}]
["Prime Fiberglass Splint 3\"",600,{"$f":"\"INSERT INTO `item` (`item_type_id`, `item_name`, `item_price`) VALUES ('2', '\"&A179&\"', '\"&B179&\"');\"","v":"INSERT INTO `item` (`item_type_id`, `item_name`, `item_price`) VALUES ('2', 'Prime Fiberglass Splint 3\"', '600');"}]
["Prime Fiberglass Splint 4\"",400,{"$f":"\"INSERT INTO `item` (`item_type_id`, `item_name`, `item_price`) VALUES ('2', '\"&A180&\"', '\"&B180&\"');\"","v":"INSERT INTO `item` (`item_type_id`, `item_name`, `item_price`) VALUES ('2', 'Prime Fiberglass Splint 4\"', '400');"}]
["Prime Sling",180,{"$f":"\"INSERT INTO `item` (`item_type_id`, `item_name`, `item_price`) VALUES ('2', '\"&A181&\"', '\"&B181&\"');\"","v":"INSERT INTO `item` (`item_type_id`, `item_name`, `item_price`) VALUES ('2', 'Prime Sling', '180');"}]
["Prime Splint 4\"",600,{"$f":"\"INSERT INTO `item` (`item_type_id`, `item_name`, `item_price`) VALUES ('2', '\"&A182&\"', '\"&B182&\"');\"","v":"INSERT INTO `item` (`item_type_id`, `item_name`, `item_price`) VALUES ('2', 'Prime Splint 4\"', '600');"}]
["Prime Splint 5\"",500,{"$f":"\"INSERT INTO `item` (`item_type_id`, `item_name`, `item_price`) VALUES ('2', '\"&A183&\"', '\"&B183&\"');\"","v":"INSERT INTO `item` (`item_type_id`, `item_name`, `item_price`) VALUES ('2', 'Prime Splint 5\"', '500');"}]
["Prime ThomasCollar Blue Eco -Large",500,{"$f":"\"INSERT INTO `item` (`item_type_id`, `item_name`, `item_price`) VALUES ('2', '\"&A184&\"', '\"&B184&\"');\"","v":"INSERT INTO `item` (`item_type_id`, `item_name`, `item_price`) VALUES ('2', 'Prime ThomasCollar Blue Eco -Large', '500');"}]
["Prime ThomasCollar Blue Eco -Large ",500,{"$f":"\"INSERT INTO `item` (`item_type_id`, `item_name`, `item_price`) VALUES ('2', '\"&A185&\"', '\"&B185&\"');\"","v":"INSERT INTO `item` (`item_type_id`, `item_name`, `item_price`) VALUES ('2', 'Prime ThomasCollar Blue Eco -Large ', '500');"}]
["Prime ThomasCollar Blue -Large",500,{"$f":"\"INSERT INTO `item` (`item_type_id`, `item_name`, `item_price`) VALUES ('2', '\"&A186&\"', '\"&B186&\"');\"","v":"INSERT INTO `item` (`item_type_id`, `item_name`, `item_price`) VALUES ('2', 'Prime ThomasCollar Blue -Large', '500');"}]
["Prime ThomasCollar Blue -Medium",500,{"$f":"\"INSERT INTO `item` (`item_type_id`, `item_name`, `item_price`) VALUES ('2', '\"&A187&\"', '\"&B187&\"');\"","v":"INSERT INTO `item` (`item_type_id`, `item_name`, `item_price`) VALUES ('2', 'Prime ThomasCollar Blue -Medium', '500');"}]
["Prime ThomasCollar Blue -Small",500,{"$f":"\"INSERT INTO `item` (`item_type_id`, `item_name`, `item_price`) VALUES ('2', '\"&A188&\"', '\"&B188&\"');\"","v":"INSERT INTO `item` (`item_type_id`, `item_name`, `item_price`) VALUES ('2', 'Prime ThomasCollar Blue -Small', '500');"}]
["Prime Walker",2200,{"$f":"\"INSERT INTO `item` (`item_type_id`, `item_name`, `item_price`) VALUES ('2', '\"&A189&\"', '\"&B189&\"');\"","v":"INSERT INTO `item` (`item_type_id`, `item_name`, `item_price`) VALUES ('2', 'Prime Walker', '2200');"}]
["Prime Wrist Splint Left -Large",500,{"$f":"\"INSERT INTO `item` (`item_type_id`, `item_name`, `item_price`) VALUES ('2', '\"&A190&\"', '\"&B190&\"');\"","v":"INSERT INTO `item` (`item_type_id`, `item_name`, `item_price`) VALUES ('2', 'Prime Wrist Splint Left -Large', '500');"}]
["Prime Wrist Splint Left -Medium",500,{"$f":"\"INSERT INTO `item` (`item_type_id`, `item_name`, `item_price`) VALUES ('2', '\"&A191&\"', '\"&B191&\"');\"","v":"INSERT INTO `item` (`item_type_id`, `item_name`, `item_price`) VALUES ('2', 'Prime Wrist Splint Left -Medium', '500');"}]
["Prime Wrist Splint Left -Small",500,{"$f":"\"INSERT INTO `item` (`item_type_id`, `item_name`, `item_price`) VALUES ('2', '\"&A192&\"', '\"&B192&\"');\"","v":"INSERT INTO `item` (`item_type_id`, `item_name`, `item_price`) VALUES ('2', 'Prime Wrist Splint Left -Small', '500');"}]
["Prime Wrist Splint Left-Small",500,{"$f":"\"INSERT INTO `item` (`item_type_id`, `item_name`, `item_price`) VALUES ('2', '\"&A193&\"', '\"&B193&\"');\"","v":"INSERT INTO `item` (`item_type_id`, `item_name`, `item_price`) VALUES ('2', 'Prime Wrist Splint Left-Small', '500');"}]
["Prime Wrist Splint Right -Large",500,{"$f":"\"INSERT INTO `item` (`item_type_id`, `item_name`, `item_price`) VALUES ('2', '\"&A194&\"', '\"&B194&\"');\"","v":"INSERT INTO `item` (`item_type_id`, `item_name`, `item_price`) VALUES ('2', 'Prime Wrist Splint Right -Large', '500');"}]
["Prime Wrist Splint Right -Medium",500,{"$f":"\"INSERT INTO `item` (`item_type_id`, `item_name`, `item_price`) VALUES ('2', '\"&A195&\"', '\"&B195&\"');\"","v":"INSERT INTO `item` (`item_type_id`, `item_name`, `item_price`) VALUES ('2', 'Prime Wrist Splint Right -Medium', '500');"}]
["Prime Wrist Splint Right -Small",500,{"$f":"\"INSERT INTO `item` (`item_type_id`, `item_name`, `item_price`) VALUES ('2', '\"&A196&\"', '\"&B196&\"');\"","v":"INSERT INTO `item` (`item_type_id`, `item_name`, `item_price`) VALUES ('2', 'Prime Wrist Splint Right -Small', '500');"}]
["Profoot Triad Orthotic (MEN)",1200,{"$f":"\"INSERT INTO `item` (`item_type_id`, `item_name`, `item_price`) VALUES ('2', '\"&A197&\"', '\"&B197&\"');\"","v":"INSERT INTO `item` (`item_type_id`, `item_name`, `item_price`) VALUES ('2', 'Profoot Triad Orthotic (MEN)', '1200');"}]
["Profoot Triad Orthotic (WOMEN)",1200,{"$f":"\"INSERT INTO `item` (`item_type_id`, `item_name`, `item_price`) VALUES ('2', '\"&A198&\"', '\"&B198&\"');\"","v":"INSERT INTO `item` (`item_type_id`, `item_name`, `item_price`) VALUES ('2', 'Profoot Triad Orthotic (WOMEN)', '1200');"}]
["Quad Cane",750,{"$f":"\"INSERT INTO `item` (`item_type_id`, `item_name`, `item_price`) VALUES ('2', '\"&A199&\"', '\"&B199&\"');\"","v":"INSERT INTO `item` (`item_type_id`, `item_name`, `item_price`) VALUES ('2', 'Quad Cane', '750');"}]
["Restorator",1900,{"$f":"\"INSERT INTO `item` (`item_type_id`, `item_name`, `item_price`) VALUES ('2', '\"&A200&\"', '\"&B200&\"');\"","v":"INSERT INTO `item` (`item_type_id`, `item_name`, `item_price`) VALUES ('2', 'Restorator', '1900');"}]
["Rib Belt - Small",800,{"$f":"\"INSERT INTO `item` (`item_type_id`, `item_name`, `item_price`) VALUES ('2', '\"&A201&\"', '\"&B201&\"');\"","v":"INSERT INTO `item` (`item_type_id`, `item_name`, `item_price`) VALUES ('2', 'Rib Belt - Small', '800');"}]
["Rib Belt (EB-502)",800,{"$f":"\"INSERT INTO `item` (`item_type_id`, `item_name`, `item_price`) VALUES ('2', '\"&A202&\"', '\"&B202&\"');\"","v":"INSERT INTO `item` (`item_type_id`, `item_name`, `item_price`) VALUES ('2', 'Rib Belt (EB-502)', '800');"}]
["Rib Belt (EB-502) -Large",800,{"$f":"\"INSERT INTO `item` (`item_type_id`, `item_name`, `item_price`) VALUES ('2', '\"&A203&\"', '\"&B203&\"');\"","v":"INSERT INTO `item` (`item_type_id`, `item_name`, `item_price`) VALUES ('2', 'Rib Belt (EB-502) -Large', '800');"}]
["Roll Gauze 2\"",20,{"$f":"\"INSERT INTO `item` (`item_type_id`, `item_name`, `item_price`) VALUES ('2', '\"&A204&\"', '\"&B204&\"');\"","v":"INSERT INTO `item` (`item_type_id`, `item_name`, `item_price`) VALUES ('2', 'Roll Gauze 2\"', '20');"}]
["Roll Gauze 3\"",50,{"$f":"\"INSERT INTO `item` (`item_type_id`, `item_name`, `item_price`) VALUES ('2', '\"&A205&\"', '\"&B205&\"');\"","v":"INSERT INTO `item` (`item_type_id`, `item_name`, `item_price`) VALUES ('2', 'Roll Gauze 3\"', '50');"}]
["Roll Gauze 4\"",40,{"$f":"\"INSERT INTO `item` (`item_type_id`, `item_name`, `item_price`) VALUES ('2', '\"&A206&\"', '\"&B206&\"');\"","v":"INSERT INTO `item` (`item_type_id`, `item_name`, `item_price`) VALUES ('2', 'Roll Gauze 4\"', '40');"}]
["Roll Gauze 5\"",75,{"$f":"\"INSERT INTO `item` (`item_type_id`, `item_name`, `item_price`) VALUES ('2', '\"&A207&\"', '\"&B207&\"');\"","v":"INSERT INTO `item` (`item_type_id`, `item_name`, `item_price`) VALUES ('2', 'Roll Gauze 5\"', '75');"}]
["Rubber Tip Aluminum Crutch Black",40,{"$f":"\"INSERT INTO `item` (`item_type_id`, `item_name`, `item_price`) VALUES ('2', '\"&A208&\"', '\"&B208&\"');\"","v":"INSERT INTO `item` (`item_type_id`, `item_name`, `item_price`) VALUES ('2', 'Rubber Tip Aluminum Crutch Black', '40');"}]
["Rubber Tip Crutches",30,{"$f":"\"INSERT INTO `item` (`item_type_id`, `item_name`, `item_price`) VALUES ('2', '\"&A209&\"', '\"&B209&\"');\"","v":"INSERT INTO `item` (`item_type_id`, `item_name`, `item_price`) VALUES ('2', 'Rubber Tip Crutches', '30');"}]
["Rubber Tip Quad Cane",40,{"$f":"\"INSERT INTO `item` (`item_type_id`, `item_name`, `item_price`) VALUES ('2', '\"&A210&\"', '\"&B210&\"');\"","v":"INSERT INTO `item` (`item_type_id`, `item_name`, `item_price`) VALUES ('2', 'Rubber Tip Quad Cane', '40');"}]
["Silicon Heel Cup -Large",500,{"$f":"\"INSERT INTO `item` (`item_type_id`, `item_name`, `item_price`) VALUES ('2', '\"&A211&\"', '\"&B211&\"');\"","v":"INSERT INTO `item` (`item_type_id`, `item_name`, `item_price`) VALUES ('2', 'Silicon Heel Cup -Large', '500');"}]
["Silicon Heel Cup -Medium",500,{"$f":"\"INSERT INTO `item` (`item_type_id`, `item_name`, `item_price`) VALUES ('2', '\"&A212&\"', '\"&B212&\"');\"","v":"INSERT INTO `item` (`item_type_id`, `item_name`, `item_price`) VALUES ('2', 'Silicon Heel Cup -Medium', '500');"}]
["Silicone Heel Cup -Large",500,{"$f":"\"INSERT INTO `item` (`item_type_id`, `item_name`, `item_price`) VALUES ('2', '\"&A213&\"', '\"&B213&\"');\"","v":"INSERT INTO `item` (`item_type_id`, `item_name`, `item_price`) VALUES ('2', 'Silicone Heel Cup -Large', '500');"}]
["Single Cane",500,{"$f":"\"INSERT INTO `item` (`item_type_id`, `item_name`, `item_price`) VALUES ('2', '\"&A214&\"', '\"&B214&\"');\"","v":"INSERT INTO `item` (`item_type_id`, `item_name`, `item_price`) VALUES ('2', 'Single Cane', '500');"}]
["Skin Traction -Large",1300,{"$f":"\"INSERT INTO `item` (`item_type_id`, `item_name`, `item_price`) VALUES ('2', '\"&A215&\"', '\"&B215&\"');\"","v":"INSERT INTO `item` (`item_type_id`, `item_name`, `item_price`) VALUES ('2', 'Skin Traction -Large', '1300');"}]
["Skin Traction -Medium",1300,{"$f":"\"INSERT INTO `item` (`item_type_id`, `item_name`, `item_price`) VALUES ('2', '\"&A216&\"', '\"&B216&\"');\"","v":"INSERT INTO `item` (`item_type_id`, `item_name`, `item_price`) VALUES ('2', 'Skin Traction -Medium', '1300');"}]
["Skin Traction -Small",1300,{"$f":"\"INSERT INTO `item` (`item_type_id`, `item_name`, `item_price`) VALUES ('2', '\"&A217&\"', '\"&B217&\"');\"","v":"INSERT INTO `item` (`item_type_id`, `item_name`, `item_price`) VALUES ('2', 'Skin Traction -Small', '1300');"}]
["Sling and Swathe Original -Large",380,{"$f":"\"INSERT INTO `item` (`item_type_id`, `item_name`, `item_price`) VALUES ('2', '\"&A218&\"', '\"&B218&\"');\"","v":"INSERT INTO `item` (`item_type_id`, `item_name`, `item_price`) VALUES ('2', 'Sling and Swathe Original -Large', '380');"}]
["Sling and Swathe Original -Medium",380,{"$f":"\"INSERT INTO `item` (`item_type_id`, `item_name`, `item_price`) VALUES ('2', '\"&A219&\"', '\"&B219&\"');\"","v":"INSERT INTO `item` (`item_type_id`, `item_name`, `item_price`) VALUES ('2', 'Sling and Swathe Original -Medium', '380');"}]
["Sling and Swathe Original -Small",380,{"$f":"\"INSERT INTO `item` (`item_type_id`, `item_name`, `item_price`) VALUES ('2', '\"&A220&\"', '\"&B220&\"');\"","v":"INSERT INTO `item` (`item_type_id`, `item_name`, `item_price`) VALUES ('2', 'Sling and Swathe Original -Small', '380');"}]
["Splint Green -Large",200,{"$f":"\"INSERT INTO `item` (`item_type_id`, `item_name`, `item_price`) VALUES ('2', '\"&A221&\"', '\"&B221&\"');\"","v":"INSERT INTO `item` (`item_type_id`, `item_name`, `item_price`) VALUES ('2', 'Splint Green -Large', '200');"}]
["Splint Violet",200,{"$f":"\"INSERT INTO `item` (`item_type_id`, `item_name`, `item_price`) VALUES ('2', '\"&A222&\"', '\"&B222&\"');\"","v":"INSERT INTO `item` (`item_type_id`, `item_name`, `item_price`) VALUES ('2', 'Splint Violet', '200');"}]
["Squeeze Ball",40,{"$f":"\"INSERT INTO `item` (`item_type_id`, `item_name`, `item_price`) VALUES ('2', '\"&A223&\"', '\"&B223&\"');\"","v":"INSERT INTO `item` (`item_type_id`, `item_name`, `item_price`) VALUES ('2', 'Squeeze Ball', '40');"}]
["Standard Wheelchair Spoke Wheels Black Upholstery",4600,{"$f":"\"INSERT INTO `item` (`item_type_id`, `item_name`, `item_price`) VALUES ('2', '\"&A224&\"', '\"&B224&\"');\"","v":"INSERT INTO `item` (`item_type_id`, `item_name`, `item_price`) VALUES ('2', 'Standard Wheelchair Spoke Wheels Black Upholstery', '4600');"}]
["Starleaf Thumb Splint",800,{"$f":"\"INSERT INTO `item` (`item_type_id`, `item_name`, `item_price`) VALUES ('2', '\"&A225&\"', '\"&B225&\"');\"","v":"INSERT INTO `item` (`item_type_id`, `item_name`, `item_price`) VALUES ('2', 'Starleaf Thumb Splint', '800');"}]
["Stockinette 2\"",30,{"$f":"\"INSERT INTO `item` (`item_type_id`, `item_name`, `item_price`) VALUES ('2', '\"&A226&\"', '\"&B226&\"');\"","v":"INSERT INTO `item` (`item_type_id`, `item_name`, `item_price`) VALUES ('2', 'Stockinette 2\"', '30');"}]
["Stockinette 3\"",180,{"$f":"\"INSERT INTO `item` (`item_type_id`, `item_name`, `item_price`) VALUES ('2', '\"&A227&\"', '\"&B227&\"');\"","v":"INSERT INTO `item` (`item_type_id`, `item_name`, `item_price`) VALUES ('2', 'Stockinette 3\"', '180');"}]
["Stockinette 36\" (1 yard)",180,{"$f":"\"INSERT INTO `item` (`item_type_id`, `item_name`, `item_price`) VALUES ('2', '\"&A228&\"', '\"&B228&\"');\"","v":"INSERT INTO `item` (`item_type_id`, `item_name`, `item_price`) VALUES ('2', 'Stockinette 36\" (1 yard)', '180');"}]
["Stockinette 4\"",180,{"$f":"\"INSERT INTO `item` (`item_type_id`, `item_name`, `item_price`) VALUES ('2', '\"&A229&\"', '\"&B229&\"');\"","v":"INSERT INTO `item` (`item_type_id`, `item_name`, `item_price`) VALUES ('2', 'Stockinette 4\"', '180');"}]
["Stockinette 5\"",75,{"$f":"\"INSERT INTO `item` (`item_type_id`, `item_name`, `item_price`) VALUES ('2', '\"&A230&\"', '\"&B230&\"');\"","v":"INSERT INTO `item` (`item_type_id`, `item_name`, `item_price`) VALUES ('2', 'Stockinette 5\"', '75');"}]
["Stockinette for closed reduction",350,{"$f":"\"INSERT INTO `item` (`item_type_id`, `item_name`, `item_price`) VALUES ('2', '\"&A231&\"', '\"&B231&\"');\"","v":"INSERT INTO `item` (`item_type_id`, `item_name`, `item_price`) VALUES ('2', 'Stockinette for closed reduction', '350');"}]
["Tennis Elbow Support -Large",450,{"$f":"\"INSERT INTO `item` (`item_type_id`, `item_name`, `item_price`) VALUES ('2', '\"&A232&\"', '\"&B232&\"');\"","v":"INSERT INTO `item` (`item_type_id`, `item_name`, `item_price`) VALUES ('2', 'Tennis Elbow Support -Large', '450');"}]
["Theraband Black (Foil)",350,{"$f":"\"INSERT INTO `item` (`item_type_id`, `item_name`, `item_price`) VALUES ('2', '\"&A233&\"', '\"&B233&\"');\"","v":"INSERT INTO `item` (`item_type_id`, `item_name`, `item_price`) VALUES ('2', 'Theraband Black (Foil)', '350');"}]
["Theraband Red (Foil)",225,{"$f":"\"INSERT INTO `item` (`item_type_id`, `item_name`, `item_price`) VALUES ('2', '\"&A234&\"', '\"&B234&\"');\"","v":"INSERT INTO `item` (`item_type_id`, `item_name`, `item_price`) VALUES ('2', 'Theraband Red (Foil)', '225');"}]
["Theraband Silver (Foil)",390,{"$f":"\"INSERT INTO `item` (`item_type_id`, `item_name`, `item_price`) VALUES ('2', '\"&A235&\"', '\"&B235&\"');\"","v":"INSERT INTO `item` (`item_type_id`, `item_name`, `item_price`) VALUES ('2', 'Theraband Silver (Foil)', '390');"}]
["Theratube Red",330,{"$f":"\"INSERT INTO `item` (`item_type_id`, `item_name`, `item_price`) VALUES ('2', '\"&A236&\"', '\"&B236&\"');\"","v":"INSERT INTO `item` (`item_type_id`, `item_name`, `item_price`) VALUES ('2', 'Theratube Red', '330');"}]
["Thumb Splint",300,{"$f":"\"INSERT INTO `item` (`item_type_id`, `item_name`, `item_price`) VALUES ('2', '\"&A237&\"', '\"&B237&\"');\"","v":"INSERT INTO `item` (`item_type_id`, `item_name`, `item_price`) VALUES ('2', 'Thumb Splint', '300');"}]
["Thumb Splint (One Size Only)",300,{"$f":"\"INSERT INTO `item` (`item_type_id`, `item_name`, `item_price`) VALUES ('2', '\"&A238&\"', '\"&B238&\"');\"","v":"INSERT INTO `item` (`item_type_id`, `item_name`, `item_price`) VALUES ('2', 'Thumb Splint (One Size Only)', '300');"}]
["Thumb Splint IMING",1000,{"$f":"\"INSERT INTO `item` (`item_type_id`, `item_name`, `item_price`) VALUES ('2', '\"&A239&\"', '\"&B239&\"');\"","v":"INSERT INTO `item` (`item_type_id`, `item_name`, `item_price`) VALUES ('2', 'Thumb Splint IMING', '1000');"}]
["Thumb Splint -Large",300,{"$f":"\"INSERT INTO `item` (`item_type_id`, `item_name`, `item_price`) VALUES ('2', '\"&A240&\"', '\"&B240&\"');\"","v":"INSERT INTO `item` (`item_type_id`, `item_name`, `item_price`) VALUES ('2', 'Thumb Splint -Large', '300');"}]
["Thumb Splint -Small",300,{"$f":"\"INSERT INTO `item` (`item_type_id`, `item_name`, `item_price`) VALUES ('2', '\"&A241&\"', '\"&B241&\"');\"","v":"INSERT INTO `item` (`item_type_id`, `item_name`, `item_price`) VALUES ('2', 'Thumb Splint -Small', '300');"}]
["Thumb Splint Stabilizer",1000,{"$f":"\"INSERT INTO `item` (`item_type_id`, `item_name`, `item_price`) VALUES ('2', '\"&A242&\"', '\"&B242&\"');\"","v":"INSERT INTO `item` (`item_type_id`, `item_name`, `item_price`) VALUES ('2', 'Thumb Splint Stabilizer', '1000');"}]
["Thumb Stabilizer (OH-304)",1200,{"$f":"\"INSERT INTO `item` (`item_type_id`, `item_name`, `item_price`) VALUES ('2', '\"&A243&\"', '\"&B243&\"');\"","v":"INSERT INTO `item` (`item_type_id`, `item_name`, `item_price`) VALUES ('2', 'Thumb Stabilizer (OH-304)', '1200');"}]
["Transfer Belt (00-173)",1600,{"$f":"\"INSERT INTO `item` (`item_type_id`, `item_name`, `item_price`) VALUES ('2', '\"&A244&\"', '\"&B244&\"');\"","v":"INSERT INTO `item` (`item_type_id`, `item_name`, `item_price`) VALUES ('2', 'Transfer Belt (00-173)', '1600');"}]
["Tri Star Ankle Support",1200,{"$f":"\"INSERT INTO `item` (`item_type_id`, `item_name`, `item_price`) VALUES ('2', '\"&A245&\"', '\"&B245&\"');\"","v":"INSERT INTO `item` (`item_type_id`, `item_name`, `item_price`) VALUES ('2', 'Tri Star Ankle Support', '1200');"}]
["Umbrella Cane -Big",450,{"$f":"\"INSERT INTO `item` (`item_type_id`, `item_name`, `item_price`) VALUES ('2', '\"&A246&\"', '\"&B246&\"');\"","v":"INSERT INTO `item` (`item_type_id`, `item_name`, `item_price`) VALUES ('2', 'Umbrella Cane -Big', '450');"}]
["Umbrella Cane -Large",400,{"$f":"\"INSERT INTO `item` (`item_type_id`, `item_name`, `item_price`) VALUES ('2', '\"&A247&\"', '\"&B247&\"');\"","v":"INSERT INTO `item` (`item_type_id`, `item_name`, `item_price`) VALUES ('2', 'Umbrella Cane -Large', '400');"}]
["Umbrella Cane -Small",350,{"$f":"\"INSERT INTO `item` (`item_type_id`, `item_name`, `item_price`) VALUES ('2', '\"&A248&\"', '\"&B248&\"');\"","v":"INSERT INTO `item` (`item_type_id`, `item_name`, `item_price`) VALUES ('2', 'Umbrella Cane -Small', '350');"}]
["Vigel",160,{"$f":"\"INSERT INTO `item` (`item_type_id`, `item_name`, `item_price`) VALUES ('2', '\"&A249&\"', '\"&B249&\"');\"","v":"INSERT INTO `item` (`item_type_id`, `item_name`, `item_price`) VALUES ('2', 'Vigel', '160');"}]
["Wadding Sheet 2\"x4 Polyester",50,{"$f":"\"INSERT INTO `item` (`item_type_id`, `item_name`, `item_price`) VALUES ('2', '\"&A250&\"', '\"&B250&\"');\"","v":"INSERT INTO `item` (`item_type_id`, `item_name`, `item_price`) VALUES ('2', 'Wadding Sheet 2\"x4 Polyester', '50');"}]
["Wadding Sheet 3\"x4 Polyester",60,{"$f":"\"INSERT INTO `item` (`item_type_id`, `item_name`, `item_price`) VALUES ('2', '\"&A251&\"', '\"&B251&\"');\"","v":"INSERT INTO `item` (`item_type_id`, `item_name`, `item_price`) VALUES ('2', 'Wadding Sheet 3\"x4 Polyester', '60');"}]
["Wadding Sheet 4\"x4 Polyester",60,{"$f":"\"INSERT INTO `item` (`item_type_id`, `item_name`, `item_price`) VALUES ('2', '\"&A252&\"', '\"&B252&\"');\"","v":"INSERT INTO `item` (`item_type_id`, `item_name`, `item_price`) VALUES ('2', 'Wadding Sheet 4\"x4 Polyester', '60');"}]
["Wadding Sheet 5\"x4 Polyester",60,{"$f":"\"INSERT INTO `item` (`item_type_id`, `item_name`, `item_price`) VALUES ('2', '\"&A253&\"', '\"&B253&\"');\"","v":"INSERT INTO `item` (`item_type_id`, `item_name`, `item_price`) VALUES ('2', 'Wadding Sheet 5\"x4 Polyester', '60');"}]
["Wheelchair",4600,{"$f":"\"INSERT INTO `item` (`item_type_id`, `item_name`, `item_price`) VALUES ('2', '\"&A254&\"', '\"&B254&\"');\"","v":"INSERT INTO `item` (`item_type_id`, `item_name`, `item_price`) VALUES ('2', 'Wheelchair', '4600');"}]
["Wooden Crutch",750,{"$f":"\"INSERT INTO `item` (`item_type_id`, `item_name`, `item_price`) VALUES ('2', '\"&A255&\"', '\"&B255&\"');\"","v":"INSERT INTO `item` (`item_type_id`, `item_name`, `item_price`) VALUES ('2', 'Wooden Crutch', '750');"}]
["Wooden Crutch set -Large",750,{"$f":"\"INSERT INTO `item` (`item_type_id`, `item_name`, `item_price`) VALUES ('2', '\"&A256&\"', '\"&B256&\"');\"","v":"INSERT INTO `item` (`item_type_id`, `item_name`, `item_price`) VALUES ('2', 'Wooden Crutch set -Large', '750');"}]
["Wooden Crutch set -Medium",750,{"$f":"\"INSERT INTO `item` (`item_type_id`, `item_name`, `item_price`) VALUES ('2', '\"&A257&\"', '\"&B257&\"');\"","v":"INSERT INTO `item` (`item_type_id`, `item_name`, `item_price`) VALUES ('2', 'Wooden Crutch set -Medium', '750');"}]
["Wrist Brace -Small",500,{"$f":"\"INSERT INTO `item` (`item_type_id`, `item_name`, `item_price`) VALUES ('2', '\"&A258&\"', '\"&B258&\"');\"","v":"INSERT INTO `item` (`item_type_id`, `item_name`, `item_price`) VALUES ('2', 'Wrist Brace -Small', '500');"}]
["Wrist Prime Right -Extra Large",500,{"$f":"\"INSERT INTO `item` (`item_type_id`, `item_name`, `item_price`) VALUES ('2', '\"&A259&\"', '\"&B259&\"');\"","v":"INSERT INTO `item` (`item_type_id`, `item_name`, `item_price`) VALUES ('2', 'Wrist Prime Right -Extra Large', '500');"}]
["Wrist Splint IM Right -Medium",500,{"$f":"\"INSERT INTO `item` (`item_type_id`, `item_name`, `item_price`) VALUES ('2', '\"&A260&\"', '\"&B260&\"');\"","v":"INSERT INTO `item` (`item_type_id`, `item_name`, `item_price`) VALUES ('2', 'Wrist Splint IM Right -Medium', '500');"}]
["Wrist Splint Kiddie Left -Large",500,{"$f":"\"INSERT INTO `item` (`item_type_id`, `item_name`, `item_price`) VALUES ('2', '\"&A261&\"', '\"&B261&\"');\"","v":"INSERT INTO `item` (`item_type_id`, `item_name`, `item_price`) VALUES ('2', 'Wrist Splint Kiddie Left -Large', '500');"}]
["Wrist Splint Kiddie Left -Small",500,{"$f":"\"INSERT INTO `item` (`item_type_id`, `item_name`, `item_price`) VALUES ('2', '\"&A262&\"', '\"&B262&\"');\"","v":"INSERT INTO `item` (`item_type_id`, `item_name`, `item_price`) VALUES ('2', 'Wrist Splint Kiddie Left -Small', '500');"}]
["Wrist Splint Kiddie Left-Medium",500,{"$f":"\"INSERT INTO `item` (`item_type_id`, `item_name`, `item_price`) VALUES ('2', '\"&A263&\"', '\"&B263&\"');\"","v":"INSERT INTO `item` (`item_type_id`, `item_name`, `item_price`) VALUES ('2', 'Wrist Splint Kiddie Left-Medium', '500');"}]
["Wrist Splint Kiddie Right -Large",500,{"$f":"\"INSERT INTO `item` (`item_type_id`, `item_name`, `item_price`) VALUES ('2', '\"&A264&\"', '\"&B264&\"');\"","v":"INSERT INTO `item` (`item_type_id`, `item_name`, `item_price`) VALUES ('2', 'Wrist Splint Kiddie Right -Large', '500');"}]
["Wrist Splint Kiddie Right -Medium",500,{"$f":"\"INSERT INTO `item` (`item_type_id`, `item_name`, `item_price`) VALUES ('2', '\"&A265&\"', '\"&B265&\"');\"","v":"INSERT INTO `item` (`item_type_id`, `item_name`, `item_price`) VALUES ('2', 'Wrist Splint Kiddie Right -Medium', '500');"}]
["Wrist Splint Kiddie Right -Small",500,{"$f":"\"INSERT INTO `item` (`item_type_id`, `item_name`, `item_price`) VALUES ('2', '\"&A266&\"', '\"&B266&\"');\"","v":"INSERT INTO `item` (`item_type_id`, `item_name`, `item_price`) VALUES ('2', 'Wrist Splint Kiddie Right -Small', '500');"}]
["Wrist Splint Left -Medium",500,{"$f":"\"INSERT INTO `item` (`item_type_id`, `item_name`, `item_price`) VALUES ('2', '\"&A267&\"', '\"&B267&\"');\"","v":"INSERT INTO `item` (`item_type_id`, `item_name`, `item_price`) VALUES ('2', 'Wrist Splint Left -Medium', '500');"}]
["Wrist Splint Left -Small",500,{"$f":"\"INSERT INTO `item` (`item_type_id`, `item_name`, `item_price`) VALUES ('2', '\"&A268&\"', '\"&B268&\"');\"","v":"INSERT INTO `item` (`item_type_id`, `item_name`, `item_price`) VALUES ('2', 'Wrist Splint Left -Small', '500');"}]
["Wrist Splint Right -Extra Large",500,{"$f":"\"INSERT INTO `item` (`item_type_id`, `item_name`, `item_price`) VALUES ('2', '\"&A269&\"', '\"&B269&\"');\"","v":"INSERT INTO `item` (`item_type_id`, `item_name`, `item_price`) VALUES ('2', 'Wrist Splint Right -Extra Large', '500');"}]
["Wrist Splint Right -Large",500,{"$f":"\"INSERT INTO `item` (`item_type_id`, `item_name`, `item_price`) VALUES ('2', '\"&A270&\"', '\"&B270&\"');\"","v":"INSERT INTO `item` (`item_type_id`, `item_name`, `item_price`) VALUES ('2', 'Wrist Splint Right -Large', '500');"}]
["Wrist Splint Right -Medium",500,{"$f":"\"INSERT INTO `item` (`item_type_id`, `item_name`, `item_price`) VALUES ('2', '\"&A271&\"', '\"&B271&\"');\"","v":"INSERT INTO `item` (`item_type_id`, `item_name`, `item_price`) VALUES ('2', 'Wrist Splint Right -Medium', '500');"}]
["Wrist Splint Right -Small",500,{"$f":"\"INSERT INTO `item` (`item_type_id`, `item_name`, `item_price`) VALUES ('2', '\"&A272&\"', '\"&B272&\"');\"","v":"INSERT INTO `item` (`item_type_id`, `item_name`, `item_price`) VALUES ('2', 'Wrist Splint Right -Small', '500');"}]
["Xylocane",150,{"$f":"\"INSERT INTO `item` (`item_type_id`, `item_name`, `item_price`) VALUES ('2', '\"&A273&\"', '\"&B273&\"');\"","v":"INSERT INTO `item` (`item_type_id`, `item_name`, `item_price`) VALUES ('2', 'Xylocane', '150');"}]